{"text_format":"3","workbook":"xlsx","n_sheets":7,"sheets":["Instructions","Cat 1 - Level 2 EV Chargers","Cat 2 - Level 3 DC-Fast Charger","+ Optional - Category 1","+ Optional - Category 1(ADD'L)","+ Optional - Category 2","+ Optional - Category 2 (ADD'L)"],"read":"whole","date_system":"1900"}

{"sheet":"Instructions","index":0,"n_rows":16,"n_cols":6,"rows_kept":16,"merged":[[2,2,2,15],[4,4,4,15],[6,2,6,14],[7,3,7,14],[8,5,8,15],[9,5,9,15],[10,5,10,15],[11,5,11,15],[12,5,12,15],[13,5,13,15],[14,5,14,15],[15,5,15,15]]}
[]
[]
[null,null,"Attachment I \nCOST PROPOSAL"]
[]
[null,null,"Offeror Name:"]
[]
[null,null,"Instructions"]
[{"$nulls":3},"The following instructions must be followed in completing the worksheet:"]
[{"$nulls":4},"1) ","This Cost Proposal form (Attachment I) has multiple sections (tabs) at the bottom of this spreadsheet. To be considered responsive, Offeror must minimally complete one of the PRIMARY tabs according to the requirements outlined herein. The Primary Tabs are to be used for scoring and awarding purposes."]
[{"$nulls":4},"2)","The Cost Proposal Form has 5 tabs at the bottom (including this Instructions tab).  An Offeror MUST complete fully either \"Cat 1 - Level 2 EV Chargers\" or \"Cat 2 - Level 3 DC Fast Charger\" to be considered responsive.  The \"+ Optional - Category 1\" and \"+ Optional - Category 2\" are for Offerors that may be able to sell/provide additional manufacturers.  The \"+\" indicants optional completion. The optional tabs are not used for scoring and awarding purposes but are to be completed by Offerors that wish to make available additional Manufacturers should a contract be awarded.  All additional Manufacturers must be added in these sheets. No additional manufacturers will be allowed to be added throughout the adminstration of the contract.  You may scroll down to add in the additional manufacturers.  If more are needed, please copy and paste the cost information requested. "]
[{"$nulls":4},"3)","For the Primary Tabs - Offeror must enter information for all boxes highlighted in BLUE for whichever category they are applying. "]
[{"$nulls":4},"4)","Within the Market Basket evaluations, Offeror must enter the  Manufacturer's Name, Model Number, Unit Price & Total Price for each item the Offeror plans to bid."]
[{"$nulls":4},"4a)","Therein, the YELLOW boxes on the right will auto populate after the initial price and discount percentage boxes are entered.   The Lowest Total Cost for each category will auto populate as you enter a price for each individual item. The Lowest Total Cost will be determined by the box in GREEN in column G.  This Lowest Total Cost will be how cost point allocation is determined for each category."]
[{"$nulls":4},"5)","An Offeror must be able to complete to provide a cost for each line item requested in an Award Category for which they are seeking an award in. "]
[{"$nulls":4},"6)","Offeror must enter the % Percentage Discount off for additional items not referenced."]
[{"$nulls":4},"7)","In addition to completing this form, Offeror shall submit separately a list of ALL products and service available for purchase indicating the manufacturer, model/part #, MSRP, offered price, that will be made available through the resulting awards.  "]

{"sheet":"Cat 1 - Level 2 EV Chargers","index":1,"n_rows":38,"n_cols":7,"rows_kept":38,"merged":[[0,0,0,6],[1,0,1,6],[5,0,5,6],[6,0,6,6],[12,0,12,6],[13,0,13,6],[22,0,22,6],[23,0,23,6],[32,0,32,5],[34,0,34,6],[35,0,35,5],[37,0,37,3]]}
["Category 1 - Level 2 EV Chargers - Primary Tab"]
["Market Basket and Discount % Off Evaluation"]
[]
[null,"Are you seeking an award in this Category?"]
[]
["Equipment"]
["Supplier may offer different discount percentages for each line item. Discount percentage for the product line item must be applied for that item for the duration of the contract, including updated or new versions of item. "]
["QTY.","DESCRIPTION","MANUFACTURER","MODEL/PART #","UNIT PRICE","DISCOUNT % OFF","FINAL STATE PRICE"]
[1,"Single Port Pedestal Mount ","OpConnect Networked ClipperCreek","HCS-40R-N-C-P",{"v":2795,"d":"$2,795.00"},{"v":0.15,"d":"15.0%"},{"$f":"E9-(E9*F9)","v":{"v":2375.75,"d":"$2,375.75"}}]
[1,"Dual Port Pedestal Mount","OpConnect Networked ClipperCreek","HCS-40R-N-HS-DP",{"v":4710,"d":"$4,710.00"},{"v":0.15,"d":"15.0%"},{"$f":"E10-(E10*F10)","v":{"v":4003.5,"d":"$4,003.50"}}]
[1,"Single Port Wall Mount (can be ceiling mount, single telephone or, street lamp pole mounting)","OpConnect Networked ClipperCreek","HCS-40R-N-C",{"v":1857,"d":"$1,857.00"},{"v":0.15,"d":"15.0%"},{"$f":"E11-(E11*F11)","v":{"v":1578.45,"d":"$1,578.45"}}]
[1,"Dual Port Wall Mount (can be ceiling mount, single telephone or, street lamp pole mounting)","OpConnect Networked ClipperCreek","HCS-40R-HS",{"v":3551,"d":"$3,551.00"},{"v":0.15,"d":"15.0%"},{"$f":"E12-(E12*F12)","v":{"v":3018.35,"d":"$3,018.35"}}]
["Accessories & Additional Items"]
["Supplier may offer different discount percentages for each line item. Discount percentage for the product line item must be applied for that item for the duration of the contract, including updated or new versions of item. "]
["QTY.","DESCRIPTION","MANUFACTURER","MODEL/PART #","UNIT PRICE","DISCOUNT % OFF","FINAL STATE PRICE"]
[1,"Cord Management Kit (most commonly sold cord management kit of suppliers which is sold to end users)","OpConnect","OC-0300-00-027",{"v":1132,"d":"$1,132.00"},{"v":0.15,"d":"15%"},{"$f":"E16-(E16*F16)","v":{"v":962.2,"d":"$962.20"}}]
[1,"Replacement Cord (most commonly sold replacement cord of suppliers which is sold to end users)",{"$nulls":4},{"v":0,"d":"$0.00"}]
[1,"125 Amp 1-Phase 120/208 Volt Sub-Panel (most common sub panel sold by supplier)",{"$nulls":4},{"v":0,"d":"$0.00"}]
[1,"Cellular Repeater (most common repeater used with station)",{"$nulls":4},{"v":0,"d":"$0.00"}]
[1,"Wheel Stops: (Includes material and installation for 1 wheel stop)",{"$nulls":4},{"v":0,"d":"$0.00"}]
[1,"Bollards: (Includes material and installation for 1 bollard)",{"$nulls":4},{"v":0,"d":"$0.00"}]
[1,"Replacement RFID card",{"$nulls":4},{"v":0,"d":"$0.00"}]
["Services"]
["Supplier may offer different discount percentages for each line item. Discount percentage for the product line item must be applied for that item for the duration of the contract, including updated or new versions of item. "]
["QTY.","DESCRIPTION","MANUFACTURER","MODEL/PART #","UNIT PRICE","DISCOUNT % OFF","EXTENDED PRICE"]
[1,"One Year Standard Networking (bundled with software) Services offered upon installation and any start up costs for first year. Please provide most commonly offered costs whether it be by license or station.","OpConnect","OP-NOC1-L2-1",{"v":240,"d":"$240.00"},null,{"$f":"E26-(E26*F26)","v":{"v":240,"d":"$240.00"}}]
[1,"Basic Asset Management Services/Plan",{"$nulls":4},{"v":0,"d":"$0.00"}]
[1,"Existing EV Station Upgrade, Swap-out from Single Port to Dual Port",{"$nulls":4},{"v":0,"d":"$0.00"}]
[1,"Commissioning (average cost to certify and commission for use 1 EV Charging Station)","OpConnect","OP-ACTIVATION-L2",{"v":75,"d":"$75.00"},null,{"v":75,"d":"$75.00"}]
[1,"Training/Support to end user (provide as hourly rate)","OpConnect","OP-TRAINING",{"v":0,"d":"$0.00"},{"v":0.15,"d":"15%"},{"v":0,"d":"$0.00"}]
[1,"Turnkey Maintenance Plan that includes gauranteed up time and preventive maintenance","OpConnect ","OP-MAINT-02",{"v":275,"d":"$275.00"},{"v":0.15,"d":"15%"},{"v":233.75,"d":"$233.75"}]
[1,"Fleet Charging Module (standard software/module provided for average fleet sizes)",{"$nulls":4},{"v":0,"d":"$0.00"}]
["MARKET BASKET SCORING: Total Cost for All Items (lowest cost will be determined by this number). The lowest cost will receive 150 Cost Points for the Market Basket section of Cost.  All others will receive a portion of the cost points determined by a ratio of how their cost compares to the lowest cost as outlined in the RFP Evaluation Plan",{"$nulls":5},{"$f":"SUM(G9:G32)","v":{"v":12487,"d":"$12,487.00"}}]
[]
["Discount % Catalog Items"]
["Additional items and accessories not offered above can be purchased from this contract at the following % off the most current publicly published price list or catalog.  Each Offeror shall submit with its bid a complete set of the published literature, catalog and/or price lists, which cover all accessories offered herein and an electronic copy, in Excel or PDF format. Offered minimum discount shall be greater than 0%.",{"$nulls":5},{"v":0.15,"d":"15.0%"}]
[]
["DISCOUNT PERCENTAGE SCORING: The highest discount percentage will receive 150 Cost Points for the Discount Percentage section of Cost.  All others will receive a portion of the cost points determined by a ratio of how their discount comparies to the highest discount as outlined in the RFP Evaluation Plan",{"$nulls":4},"Average Proposed discount %:",{"$f":"IFERROR(AVERAGE(G36,F26:F32,F16:F22,F9:F12),0)","v":{"v":0.15,"d":"15.0%"}}]

{"sheet":"Cat 2 - Level 3 DC-Fast Charger","index":2,"n_rows":37,"n_cols":7,"rows_kept":37,"merged":[[0,0,0,6],[1,0,1,6],[5,0,5,6],[6,0,6,6],[11,0,11,6],[12,0,12,6],[21,0,21,6],[22,0,22,6],[31,0,31,5],[33,0,33,6],[34,0,34,5],[36,0,36,3]]}
["Category 2 - Level 3 DC Fast EV Chargers - Primary Tab"]
["Market Basket and Discount % Off Evaluation"]
[]
[null,"Are you seeking an award in this Category?"]
[]
["Equipment"]
["Supplier may offer different discount percentages for each line item. Discount percentage for the product line item must be applied for that item for the duration of the contract, including updated or new versions of item. "]
["QTY.","DESCRIPTION","MANUFACTURER","MODEL/PART #","UNIT PRICE","DISCOUNT % OFF","FINAL ITEM COST"]
[1,"All In One Single Unit Station (Power Cabinet and Dispenser)","ABB","Tera 54 HV C + CCR / 6AGC108711",{"v":43825.24,"d":"$43,825.24"},{"v":0.3,"d":"30%"},{"$f":"E9-(E9*F9)","v":{"v":30677.667999999998,"d":"$30,677.67"}}]
[]
[]
["Accessories & Additional Items"]
["Supplier may offer different discount percentages for each line item. Discount percentage for the product line item must be applied for that item for the duration of the contract, including updated or new versions of item. "]
["QTY.","DESCRIPTION","MANUFACTURER","MODEL/PART #","UNIT PRICE","DISCOUNT % OFF","FINAL ITEM COST"]
[1,"Cord Management Kit (most commonly sold cord management kit of suppliers which is sold to end users)","ABB","TL40018003819003",{"v":1656.2,"d":"$1,656.20"},{"v":0.15,"d":"15%"},{"$f":"E15-(E15*F15)","v":{"v":1407.77,"d":"$1,407.77"}}]
[1,"Replacement Cord (most commonly sold replacement cord of suppliers which is sold to end users)",{"$nulls":4},{"v":0,"d":"$0.00"}]
[1,"480 Volt Sub-Panel (most commonly sold by supplier)",{"$nulls":4},{"v":0,"d":"$0.00"}]
[1,"Cellular Repeater (most common repeater used with station)",{"$nulls":4},{"v":0,"d":"$0.00"}]
[1,"Wheel Stops: (Includes material and installation for 1 wheel stop)",{"$nulls":4},{"v":0,"d":"$0.00"}]
[1,"Bollards: (Includes material and installation for 1 bollard)",{"$nulls":4},{"v":0,"d":"$0.00"}]
[1,"Replacement RFID card","OpConnect","OPCONNECT-RFID",{"v":5,"d":"$5.00"},{"v":0.15,"d":"15%"},{"v":4.25,"d":"$4.25"}]
["Services"]
["Supplier may offer different discount percentages for each line item. Discount percentage for the product line item must be applied for that item for the duration of the contract, including updated or new versions of item. "]
["QTY.","DESCRIPTION","MANUFACTURER","MODEL/PART #","UNIT PRICE","DISCOUNT % OFF","FINAL ITEM COST"]
[1,"One Year Standard Networking (bundled with software) Services offered upon installation and any start up costs for first year. Please provide most commonly offered costs whether it be by license or station.",null,"OP-NOC3-L3-1",{"v":500,"d":"$500.00"},{"v":0.2,"d":"20%"},{"$f":"E25-(E25*F25)","v":{"v":400,"d":"$400.00"}}]
[1,"Basic Asset Management Services/Plan",{"$nulls":4},{"v":0,"d":"$0.00"}]
[1,"Existing EV Station Upgrade, Swap-out from Single Port to Dual Port",{"$nulls":4},{"v":0,"d":"$0.00"}]
[1,"Commissioning (average cost to certify and commission for use 1 EV Charging Station)",null,"OP-PROVISION-DCFC",{"v":2400,"d":"$2,400.00"},{"v":0.1,"d":"10%"},{"v":2160,"d":"$2,160.00"}]
[1,"Training/Support to end user (provide as hourly rate)","OpConnect","OP-TRAINING",{"v":0,"d":"$0.00"},{"v":0.15,"d":"15%"},{"v":0,"d":"$0.00"}]
[1,"Turnkey Maintenance Plan that includes gauranteed up time and preventive maintenance",null,"6AGC068175 + 6AGX000021*",{"$f":"2861.67+1334.49","v":{"v":4196.16,"d":"$4,196.16"}},{"v":0.15,"d":"15%"},{"v":3566.736,"d":"$3,566.74"}]
[1,"Fleet Charging Module (standard software/module provided for average fleet sizes)",{"$nulls":4},{"v":0,"d":"$0.00"}]
["MARKET BASKET SCORING: Total Cost for All Items (lowest cost will be determined by this number). The lowest cost will receive 150 Cost Points for the Market Basket section of Cost.  All others will receive a portion of the cost points determined by a ratio of how their cost compares to the lowest cost as outlined in the RFP Evaluation Plan",{"$nulls":5},{"$f":"SUM(G9:G31)","v":{"v":38216.42399999999,"d":"$38,216.42"}}]
[]
["Discount % Catalog Items"]
["Additional items and accessories not offered above can be purchased from this contract at the following % off the most current publicly published price list or catalog.  Each Offeror shall submit with its bid a complete set of the published literature, catalog and/or price lists, which cover all accessories offered herein and an electronic copy, in Excel or PDF format. Offered minimum discount shall be greater than 0%.",{"$nulls":5},{"v":0.15,"d":"15.0%"}]
[]
["DISCOUNT PERCENTAGE SCORING: The highest discount percentage will receive 150 Cost Points for the Discount Percentage section of Cost.  All others will receive a portion of the cost points determined by a ratio of how their discount comparies to the highest discount as outlined in the RFP Evaluation Plan",{"$nulls":4},"Average Proposed discount %:",{"$f":"IFERROR(AVERAGE(G35,F25:F31,F15:F21,F9:F11),0)","v":{"v":0.16875,"d":"16.9%"}}]

{"sheet":"+ Optional - Category 1","index":3,"n_rows":124,"n_cols":7,"rows_kept":124,"merged":[[0,0,0,6],[1,0,1,6],[3,0,3,1],[6,0,6,6],[7,0,7,6],[13,0,13,6],[22,0,22,6],[32,0,32,6],[33,0,33,5],[36,0,36,6],[37,0,37,6],[43,0,43,6],[52,0,52,6],[62,0,62,6],[63,0,63,5],[66,0,66,6],[67,0,67,6],[73,0,73,6],[82,0,82,6],[92,0,92,6],[93,0,93,5],[96,0,96,6],[97,0,97,6],[103,0,103,6],[112,0,112,6],[122,0,122,6],[123,0,123,5]]}
["OPTIONAL - Category 1 - Level 2 EV Chargers"]
["This tab is to be used if supplier will offer additional manufacturers if they are awarded a contract. This tab is NOT used for scoring and awarding but required to be completed if supplier is planning on offering additional manufacturers.  There are 4 tables to add up to 4 additional manufacturers.  If supplier offers more than 4, they may copy and paste the table at the bottom to add additional manufacturers.  As this is not used for scoring and awarding, these tables DO NOT need to have each line item filled out."]
[]
["How many additional manufacturers does supplier offer"]
[]
[]
["Additional Manufacturer # 1"]
["Equipment"]
["QTY.","DESCRIPTION","MANUFACTURER","MODEL/PART #","UNIT PRICE","DISCOUNT % OFF","FINAL STATE PRICE"]
[1,"Single Port Pedestal Mount ","OpConnect Networked ClipperCreek","HCS-50R-N-C-P",{"v":3008,"d":"$3,008.00"},{"v":0.15,"d":"15.0%"},{"$f":"E10-(E10*F10)","v":{"v":2556.8,"d":"$2,556.80"}}]
[1,"Dual Port Pedestal Mount","OpConnect Networked ClipperCreek","HCS-50R-N-HS-DP",{"v":5147,"d":"$5,147.00"},{"v":0.15,"d":"15.0%"},{"$f":"E11-(E11*F11)","v":{"v":4374.95,"d":"$4,374.95"}}]
[1,"Single Port Wall Mount (can be ceiling mount, single telephone or, street lamp pole mounting)","OpConnect Networked ClipperCreek","HCS-50R-N-C",{"v":2070,"d":"$2,070.00"},{"v":0.15,"d":"15.0%"},{"$f":"E12-(E12*F12)","v":{"v":1759.5,"d":"$1,759.50"}}]
[1,"Dual Port Wall Mount (can be ceiling mount, single telephone or, street lamp pole mounting)","OpConnect Networked ClipperCreek","HCS-50R-HS",{"v":3988,"d":"$3,988.00"},{"v":0.15,"d":"15.0%"},{"$f":"E13-(E13*F13)","v":{"v":3389.8,"d":"$3,389.80"}}]
["Accessories & Additional Items"]
["QTY.","DESCRIPTION","MANUFACTURER","MODEL/PART #","UNIT PRICE","DISCOUNT % OFF","FINAL STATE PRICE"]
[1,"Cord Management Kit (most commonly sold cord management kit of suppliers which is sold to end users)","OpConnect","OC-0300-00-027",{"v":1132,"d":"$1,132.00"},{"v":0.15,"d":"15%"},{"$f":"E16-(E16*F16)","v":{"v":962.2,"d":"$962.20"}}]
[1,"Replacement Cord (most commonly sold replacement cord of suppliers which is sold to end users)",{"$nulls":4},{"v":0,"d":"$0.00"}]
[1,"125 Amp 1-Phase 120/208 Volt Sub-Panel (most common sub panel sold by supplier)",{"$nulls":4},{"v":0,"d":"$0.00"}]
[1,"Cellular Repeater (most common repeater used with station)",{"$nulls":4},{"v":0,"d":"$0.00"}]
[1,"Wheel Stops: (Includes material and installation for 1 wheel stop)",{"$nulls":4},{"v":0,"d":"$0.00"}]
[1,"Bollards: (Includes material and installation for 1 bollard)",{"$nulls":4},{"v":0,"d":"$0.00"}]
[1,"Replacement RFID card",{"$nulls":4},{"v":0,"d":"$0.00"}]
["Services"]
["QTY.","DESCRIPTION","MANUFACTURER","MODEL/PART #","UNIT PRICE","DISCOUNT % OFF","EXTENDED PRICE"]
[1,"One Year Standard Networking (bundled with software) Services offered upon installation and any start up costs for first year. Please provide most commonly offered costs whether it be by license or station.","OpConnect","OP-NOC1-L2-1",{"v":240,"d":"$240.00"},{"v":0.15,"d":"15%"},{"$f":"E25-(E25*F25)","v":{"v":204,"d":"$204.00"}}]
[1,"Basic Asset Management Services/Plan",{"$nulls":4},{"v":0,"d":"$0.00"}]
[1,"Existing EV Station Upgrade, Swap-out from Single Port to Dual Port",{"$nulls":4},{"v":0,"d":"$0.00"}]
[1,"Commissioning (average cost to certify and commission for use 1 EV Charging Station)","OpConnect","OP-ACTIVATION-L2",{"v":75,"d":"$75.00"},{"v":0.15,"d":"15%"},{"v":63.75,"d":"$63.75"}]
[1,"Training/Support to end user (provide as hourly rate)","OpConnect","OP-TRAINING",{"v":0,"d":"$0.00"},{"v":0.15,"d":"15%"},{"v":0,"d":"$0.00"}]
[1,"Turnkey Maintenance Plan that includes gauranteed up time and preventive maintenance","OpConnect ","OP-MAINT-02",{"v":275,"d":"$275.00"},{"v":0.15,"d":"15%"},{"v":233.75,"d":"$233.75"}]
[1,"Fleet Charging Module (standard software/module provided for average fleet sizes)",{"$nulls":4},{"v":0,"d":"$0.00"}]
[]
["Discount % Catalog Items"]
["Additional items and accessories not offered above can be purchased from this contract at the following % off the most current publicly published price list or catalog.  Offeror must also submit a list of additional items that fit within these areas that may also be purchased via the contract.",{"$nulls":5},{"v":0.15,"d":"15.0%"}]
[]
[]
["Additional Manufacturer # 2"]
["Equipment"]
["QTY.","DESCRIPTION","MANUFACTURER","MODEL/PART #","UNIT PRICE","DISCOUNT % OFF","FINAL STATE PRICE"]
[1,"Single Port Pedestal Mount ","OpConnect Networked ClipperCreek","HCS-60R-N-C-P",{"v":3441,"d":"$3,441.00"},{"v":0.15,"d":"15.0%"},{"$f":"E40-(E40*F40)","v":{"v":2924.85,"d":"$2,924.85"}}]
[1,"Dual Port Pedestal Mount","OpConnect Networked ClipperCreek","HCS-60R-N-HS-DP",{"v":5937,"d":"$5,937.00"},{"v":0.15,"d":"15.0%"},{"$f":"E41-(E41*F41)","v":{"v":5046.45,"d":"$5,046.45"}}]
[1,"Single Port Wall Mount (can be ceiling mount, single telephone or, street lamp pole mounting)","OpConnect Networked ClipperCreek","HCS-60R-N-C",{"v":2503,"d":"$2,503.00"},{"v":0.15,"d":"15.0%"},{"$f":"E42-(E42*F42)","v":{"v":2127.55,"d":"$2,127.55"}}]
[1,"Dual Port Wall Mount (can be ceiling mount, single telephone or, street lamp pole mounting)","OpConnect Networked ClipperCreek","HCS-60R-HS",{"v":4778,"d":"$4,778.00"},{"v":0.15,"d":"15.0%"},{"$f":"E43-(E43*F43)","v":{"v":4061.3,"d":"$4,061.30"}}]
["Accessories & Additional Items"]
["QTY.","DESCRIPTION","MANUFACTURER","MODEL/PART #","UNIT PRICE","DISCOUNT % OFF","FINAL STATE PRICE"]
[1,"Cord Management Kit (most commonly sold cord management kit of suppliers which is sold to end users)","OpConnect","OC-0300-00-027",{"v":1132,"d":"$1,132.00"},{"v":0.15,"d":"15%"},{"$f":"E46-(E46*F46)","v":{"v":962.2,"d":"$962.20"}}]
[1,"Replacement Cord (most commonly sold replacement cord of suppliers which is sold to end users)",{"$nulls":4},{"v":0,"d":"$0.00"}]
[1,"125 Amp 1-Phase 120/208 Volt Sub-Panel (most common sub panel sold by supplier)",{"$nulls":4},{"v":0,"d":"$0.00"}]
[1,"Cellular Repeater (most common repeater used with station)",{"$nulls":4},{"v":0,"d":"$0.00"}]
[1,"Wheel Stops: (Includes material and installation for 1 wheel stop)",{"$nulls":4},{"v":0,"d":"$0.00"}]
[1,"Bollards: (Includes material and installation for 1 bollard)",{"$nulls":4},{"v":0,"d":"$0.00"}]
[1,"Replacement RFID card","OpConnect","OPCONNECT-RFID",{"v":5,"d":"$5.00"},{"v":0.15,"d":"15%"},{"v":4.25,"d":"$4.25"}]
["Services"]
["QTY.","DESCRIPTION","MANUFACTURER","MODEL/PART #","UNIT PRICE","DISCOUNT % OFF","EXTENDED PRICE"]
[1,"One Year Standard Networking (bundled with software) Services offered upon installation and any start up costs for first year. Please provide most commonly offered costs whether it be by license or station.","OpConnect","OP-NOC1-L2-1",{"v":240,"d":"$240.00"},{"v":0.15,"d":"15%"},{"$f":"E55-(E55*F55)","v":{"v":204,"d":"$204.00"}}]
[1,"Basic Asset Management Services/Plan",{"$nulls":4},{"v":0,"d":"$0.00"}]
[1,"Existing EV Station Upgrade, Swap-out from Single Port to Dual Port",{"$nulls":4},{"v":0,"d":"$0.00"}]
[1,"Commissioning (average cost to certify and commission for use 1 EV Charging Station)","OpConnect","OP-ACTIVATION-L2",{"v":75,"d":"$75.00"},{"v":0.15,"d":"15%"},{"v":63.75,"d":"$63.75"}]
[1,"Training/Support to end user (provide as hourly rate)","OpConnect","OP-TRAINING",{"v":0,"d":"$0.00"},{"v":0.15,"d":"15%"},{"v":0,"d":"$0.00"}]
[1,"Turnkey Maintenance Plan that includes gauranteed up time and preventive maintenance","OpConnect ","OP-MAINT-02",{"v":275,"d":"$275.00"},{"v":0.15,"d":"15%"},{"v":233.75,"d":"$233.75"}]
[1,"Fleet Charging Module (standard software/module provided for average fleet sizes)",{"$nulls":4},{"v":0,"d":"$0.00"}]
[]
["Discount % Catalog Items"]
["Additional items and accessories not offered above can be purchased from this contract at the following % off the most current publicly published price list or catalog.  Offeror must also submit a list of additional items that fit within these areas that may also be purchased via the contract.",{"$nulls":5},{"v":0.15,"d":"15.0%"}]
[]
[]
["Additional Manufacturer # 3"]
["Equipment"]
["QTY.","DESCRIPTION","MANUFACTURER","MODEL/PART #","UNIT PRICE","DISCOUNT % OFF","FINAL STATE PRICE"]
[1,"Single Port Pedestal Mount ","OpConnect Networked ClipperCreek","HCS-80R-N-C-P",{"v":4248,"d":"$4,248.00"},{"v":0.15,"d":"15.0%"},{"$f":"E70-(E70*F70)","v":{"v":3610.8,"d":"$3,610.80"}}]
[1,"Dual Port Pedestal Mount","OpConnect Networked ClipperCreek","HCS-80R-N-HS-DP",{"v":7479,"d":"$7,479.00"},{"v":0.15,"d":"15.0%"},{"$f":"E71-(E71*F71)","v":{"v":6357.15,"d":"$6,357.15"}}]
[1,"Single Port Wall Mount (can be ceiling mount, single telephone or, street lamp pole mounting)","OpConnect Networked ClipperCreek","HCS-80R-N-C",{"v":3310,"d":"$3,310.00"},{"v":0.15,"d":"15.0%"},{"$f":"E72-(E72*F72)","v":{"v":2813.5,"d":"$2,813.50"}}]
[1,"Dual Port Wall Mount (can be ceiling mount, single telephone or, street lamp pole mounting)","OpConnect Networked ClipperCreek","HCS-80R-HS",{"v":6320,"d":"$6,320.00"},{"v":0.15,"d":"15.0%"},{"$f":"E73-(E73*F73)","v":{"v":5372,"d":"$5,372.00"}}]
["Accessories & Additional Items"]
["QTY.","DESCRIPTION","MANUFACTURER","MODEL/PART #","UNIT PRICE","DISCOUNT % OFF","FINAL STATE PRICE"]
[1,"Cord Management Kit (most commonly sold cord management kit of suppliers which is sold to end users)","OpConnect","OC-0300-00-027",{"v":1132,"d":"$1,132.00"},{"v":0.15,"d":"15%"},{"$f":"E76-(E76*F76)","v":{"v":962.2,"d":"$962.20"}}]
[1,"Replacement Cord (most commonly sold replacement cord of suppliers which is sold to end users)",{"$nulls":4},{"v":0,"d":"$0.00"}]
[1,"125 Amp 1-Phase 120/208 Volt Sub-Panel (most common sub panel sold by supplier)",{"$nulls":4},{"v":0,"d":"$0.00"}]
[1,"Cellular Repeater (most common repeater used with station)",{"$nulls":4},{"v":0,"d":"$0.00"}]
[1,"Wheel Stops: (Includes material and installation for 1 wheel stop)",{"$nulls":4},{"v":0,"d":"$0.00"}]
[1,"Bollards: (Includes material and installation for 1 bollard)",{"$nulls":4},{"v":0,"d":"$0.00"}]
[1,"Replacement RFID card","OpConnect","OPCONNECT-RFID",{"v":5,"d":"$5.00"},{"v":0.15,"d":"15%"},{"v":4.25,"d":"$4.25"}]
["Services"]
["QTY.","DESCRIPTION","MANUFACTURER","MODEL/PART #","UNIT PRICE","DISCOUNT % OFF","EXTENDED PRICE"]
[1,"One Year Standard Networking (bundled with software) Services offered upon installation and any start up costs for first year. Please provide most commonly offered costs whether it be by license or station.","OpConnect","OP-NOC1-L2-1",{"v":300,"d":"$300.00"},{"v":0.15,"d":"15%"},{"$f":"E85-(E85*F85)","v":{"v":255,"d":"$255.00"}}]
[1,"Basic Asset Management Services/Plan",{"$nulls":4},{"v":0,"d":"$0.00"}]
[1,"Existing EV Station Upgrade, Swap-out from Single Port to Dual Port",{"$nulls":4},{"v":0,"d":"$0.00"}]
[1,"Commissioning (average cost to certify and commission for use 1 EV Charging Station)","OpConnect","OP-ACTIVATION-L2",{"v":75,"d":"$75.00"},{"v":0.15,"d":"15%"},{"v":63.75,"d":"$63.75"}]
[1,"Training/Support to end user (provide as hourly rate)","OpConnect","OP-TRAINING",{"v":0,"d":"$0.00"},{"v":0.15,"d":"15%"},{"v":0,"d":"$0.00"}]
[1,"Turnkey Maintenance Plan that includes gauranteed up time and preventive maintenance","OpConnect ","OP-MAINT-02",{"v":275,"d":"$275.00"},{"v":0.15,"d":"15%"},{"v":233.75,"d":"$233.75"}]
[1,"Fleet Charging Module (standard software/module provided for average fleet sizes)",{"$nulls":4},{"v":0,"d":"$0.00"}]
[]
["Discount % Catalog Items"]
["Additional items and accessories not offered above can be purchased from this contract at the following % off the most current publicly published price list or catalog.  Offeror must also submit a list of additional items that fit within these areas that may also be purchased via the contract.",{"$nulls":5},{"v":0.15,"d":"15.0%"}]
[]
[]
["Additional Manufacturer # 4"]
["Equipment"]
["QTY.","DESCRIPTION","MANUFACTURER","MODEL/PART #","UNIT PRICE","DISCOUNT % OFF","FINAL STATE PRICE"]
[1,"Single Port Pedestal Mount ","OpConnect Networked ClipperCreek","CS-100R-N-C-P",{"v":5263,"d":"$5,263.00"},{"v":0.15,"d":"15.0%"},{"$f":"E100-(E100*F100)","v":{"v":4473.55,"d":"$4,473.55"}}]
[1,"Dual Port Pedestal Mount","OpConnect Networked ClipperCreek","CS-100R-N-HS-DP",{"v":9479,"d":"$9,479.00"},{"v":0.15,"d":"15.0%"},{"$f":"E101-(E101*F101)","v":{"v":8057.15,"d":"$8,057.15"}}]
[1,"Single Port Wall Mount (can be ceiling mount, single telephone or, street lamp pole mounting)","OpConnect Networked ClipperCreek","CS-100R-N-C",{"v":4325,"d":"$4,325.00"},{"v":0.15,"d":"15.0%"},{"$f":"E102-(E102*F102)","v":{"v":3676.25,"d":"$3,676.25"}}]
[1,"Dual Port Wall Mount (can be ceiling mount, single telephone or, street lamp pole mounting)","OpConnect Networked ClipperCreek","CS-100R-HS",{"v":8320,"d":"$8,320.00"},{"v":0.15,"d":"15.0%"},{"$f":"E103-(E103*F103)","v":{"v":7072,"d":"$7,072.00"}}]
["Accessories & Additional Items"]
["QTY.","DESCRIPTION","MANUFACTURER","MODEL/PART #","UNIT PRICE","DISCOUNT % OFF","FINAL STATE PRICE"]
[1,"Cord Management Kit (most commonly sold cord management kit of suppliers which is sold to end users)","OpConnect","OC-0300-00-027",{"v":1132,"d":"$1,132.00"},{"v":0.15,"d":"15%"},{"$f":"E106-(E106*F106)","v":{"v":962.2,"d":"$962.20"}}]
[1,"Replacement Cord (most commonly sold replacement cord of suppliers which is sold to end users)",{"$nulls":4},{"v":0,"d":"$0.00"}]
[1,"125 Amp 1-Phase 120/208 Volt Sub-Panel (most common sub panel sold by supplier)",{"$nulls":4},{"v":0,"d":"$0.00"}]
[1,"Cellular Repeater (most common repeater used with station)",{"$nulls":4},{"v":0,"d":"$0.00"}]
[1,"Wheel Stops: (Includes material and installation for 1 wheel stop)",{"$nulls":4},{"v":0,"d":"$0.00"}]
[1,"Bollards: (Includes material and installation for 1 bollard)",{"$nulls":4},{"v":0,"d":"$0.00"}]
[1,"Replacement RFID card","OpConnect","OPCONNECT-RFID",{"v":5,"d":"$5.00"},{"v":0.15,"d":"15%"},{"v":4.25,"d":"$4.25"}]
["Services"]
["QTY.","DESCRIPTION","MANUFACTURER","MODEL/PART #","UNIT PRICE","DISCOUNT % OFF","EXTENDED PRICE"]
[1,"One Year Standard Networking (bundled with software) Services offered upon installation and any start up costs for first year. Please provide most commonly offered costs whether it be by license or station.","OpConnect","OP-NOC1-L2-1",{"v":300,"d":"$300.00"},{"v":0.15,"d":"15%"},{"$f":"E115-(E115*F115)","v":{"v":255,"d":"$255.00"}}]
[1,"Basic Asset Management Services/Plan",{"$nulls":4},{"v":0,"d":"$0.00"}]
[1,"Existing EV Station Upgrade, Swap-out from Single Port to Dual Port",{"$nulls":4},{"v":0,"d":"$0.00"}]
[1,"Commissioning (average cost to certify and commission for use 1 EV Charging Station)","OpConnect","OP-ACTIVATION-L2",{"v":75,"d":"$75.00"},{"v":0.15,"d":"15%"},{"v":63.75,"d":"$63.75"}]
[1,"Training/Support to end user (provide as hourly rate)","OpConnect","OP-TRAINING",{"v":0,"d":"$0.00"},{"v":0.15,"d":"15%"},{"v":0,"d":"$0.00"}]
[1,"Turnkey Maintenance Plan that includes gauranteed up time and preventive maintenance","OpConnect ","OP-MAINT-02",{"v":275,"d":"$275.00"},{"v":0.15,"d":"15%"},{"v":233.75,"d":"$233.75"}]
[1,"Fleet Charging Module (standard software/module provided for average fleet sizes)",{"$nulls":4},{"v":0,"d":"$0.00"}]
[]
["Discount % Catalog Items"]
["Additional items and accessories not offered above can be purchased from this contract at the following % off the most current publicly published price list or catalog.  Offeror must also submit a list of additional items that fit within these areas that may also be purchased via the contract.",{"$nulls":5},{"v":0.15,"d":"15.0%"}]

{"sheet":"+ Optional - Category 1(ADD'L)","index":4,"n_rows":338,"n_cols":7,"rows_kept":338,"merged":[[0,0,0,6],[1,0,1,6],[3,0,3,1],[6,0,6,6],[7,0,7,6],[13,0,13,6],[22,0,22,6],[32,0,32,6],[33,0,33,5],[36,0,36,6],[37,0,37,6],[43,0,43,6],[52,0,52,6],[62,0,62,6],[63,0,63,5],[66,0,66,6],[67,0,67,6],[73,0,73,6],[82,0,82,6],[92,0,92,6],[93,0,93,5],[96,0,96,6],[97,0,97,6],[103,0,103,6],[112,0,112,6],[123,0,123,6],[124,0,124,6],[130,0,130,6],[139,0,139,6],[150,0,150,6],[151,0,151,6],[157,0,157,6],[166,0,166,6],[176,0,176,6],[177,0,177,6],[183,0,183,6],[192,0,192,6],[202,0,202,6],[203,0,203,6],[209,0,209,6],[219,0,219,6],[230,0,230,6],[231,0,231,6],[237,0,237,6],[247,0,247,6],[258,0,258,6],[259,0,259,6],[265,0,265,6],[275,0,275,6],[285,0,285,6],[286,0,286,6],[292,0,292,6],[302,0,302,6],[312,0,312,6],[313,0,313,6],[319,0,319,6],[329,0,329,6]]}
["OPTIONAL - Category 1 - Level 2 EV Chargers"]
["This tab is to be used if supplier will offer additional manufacturers if they are awarded a contract. This tab is NOT used for scoring and awarding but required to be completed if supplier is planning on offering additional manufacturers.  There are 4 tables to add up to 4 additional manufacturers.  If supplier offers more than 4, they may copy and paste the table at the bottom to add additional manufacturers.  As this is not used for scoring and awarding, these tables DO NOT need to have each line item filled out."]
[]
["How many additional manufacturers does supplier offer"]
[]
[]
["Additional Manufacturer # 1"]
["Equipment"]
["QTY.","DESCRIPTION","MANUFACTURER","MODEL/PART #","UNIT PRICE","DISCOUNT % OFF","FINAL STATE PRICE"]
[1,"Single Port Pedestal Mount ","Liteon","SC3",{"$f":"E12+938","v":{"v":2045,"d":"$2,045.00"}},{"v":0.15,"d":"15.0%"},{"$f":"E10-(E10*F10)","v":{"v":1738.25,"d":"$1,738.25"}}]
[1,"Dual Port Pedestal Mount","Liteon","SC3",{"$f":"E13+938+165","v":{"v":3317,"d":"$3,317.00"}},{"v":0.15,"d":"15.0%"},{"$f":"E11-(E11*F11)","v":{"v":2819.45,"d":"$2,819.45"}}]
[1,"Single Port Wall Mount (can be ceiling mount, single telephone or, street lamp pole mounting)","Liteon","SC3",{"v":1107,"d":"$1,107.00"},{"v":0.15,"d":"15.0%"},{"$f":"E12-(E12*F12)","v":{"v":940.95,"d":"$940.95"}}]
[1,"Dual Port Wall Mount (can be ceiling mount, single telephone or, street lamp pole mounting)","Liteon","SC3",{"$f":"E12*2","v":{"v":2214,"d":"$2,214.00"}},{"v":0.15,"d":"15.0%"},{"$f":"E13-(E13*F13)","v":{"v":1881.9,"d":"$1,881.90"}}]
["Accessories & Additional Items"]
["QTY.","DESCRIPTION","MANUFACTURER","MODEL/PART #","UNIT PRICE","DISCOUNT % OFF","FINAL STATE PRICE"]
[1,"Cord Management Kit (most commonly sold cord management kit of suppliers which is sold to end users)",{"$nulls":3},{"v":0.15,"d":"15%"},{"$f":"E16-(E16*F16)","v":{"v":0,"d":"$0.00"}}]
[1,"Replacement Cord (most commonly sold replacement cord of suppliers which is sold to end users)",{"$nulls":4},{"v":0,"d":"$0.00"}]
[1,"125 Amp 1-Phase 120/208 Volt Sub-Panel (most common sub panel sold by supplier)",{"$nulls":4},{"v":0,"d":"$0.00"}]
[1,"Cellular Repeater (most common repeater used with station)",{"$nulls":4},{"v":0,"d":"$0.00"}]
[1,"Wheel Stops: (Includes material and installation for 1 wheel stop)",{"$nulls":4},{"v":0,"d":"$0.00"}]
[1,"Bollards: (Includes material and installation for 1 bollard)",{"$nulls":4},{"v":0,"d":"$0.00"}]
[1,"Replacement RFID card",{"$nulls":4},{"v":0,"d":"$0.00"}]
["Services"]
["QTY.","DESCRIPTION","MANUFACTURER","MODEL/PART #","UNIT PRICE","DISCOUNT % OFF","EXTENDED PRICE"]
[1,"One Year Standard Networking (bundled with software) Services offered upon installation and any start up costs for first year. Please provide most commonly offered costs whether it be by license or station.","OpConnect","OP-NOC1-L2HP-1",{"v":300,"d":"$300.00"},{"v":0.15,"d":"15%"},{"$f":"E25-(E25*F25)","v":{"v":255,"d":"$255.00"}}]
[1,"Basic Asset Management Services/Plan",{"$nulls":4},{"v":0,"d":"$0.00"}]
[1,"Existing EV Station Upgrade, Swap-out from Single Port to Dual Port",{"$nulls":4},{"v":0,"d":"$0.00"}]
[1,"Commissioning (average cost to certify and commission for use 1 EV Charging Station)",{"$nulls":4},{"v":0,"d":"$0.00"}]
[1,"Training/Support to end user (provide as hourly rate)",{"$nulls":4},{"v":0,"d":"$0.00"}]
[1,"Turnkey Maintenance Plan that includes gauranteed up time and preventive maintenance",{"$nulls":4},{"v":0,"d":"$0.00"}]
[1,"Fleet Charging Module (standard software/module provided for average fleet sizes)",{"$nulls":4},{"v":0,"d":"$0.00"}]
[]
["Discount % Catalog Items"]
["Additional items and accessories not offered above can be purchased from this contract at the following % off the most current publicly published price list or catalog.  Offeror must also submit a list of additional items that fit within these areas that may also be purchased via the contract.",{"$nulls":5},{"v":0.15,"d":"15.0%"}]
[]
[]
["Additional Manufacturer # 2"]
["Equipment"]
["QTY.","DESCRIPTION","MANUFACTURER","MODEL/PART #","UNIT PRICE","DISCOUNT % OFF","FINAL STATE PRICE"]
[1,"Single Port Pedestal Mount ","LiteOn","IC3",{"$f":"E42+938","v":{"v":2512,"d":"$2,512.00"}},{"v":0.15,"d":"15.0%"},{"$f":"E40-(E40*F40)","v":{"v":2135.2,"d":"$2,135.20"}}]
[1,"Dual Port Pedestal Mount","LiteOn","IC3",{"$f":"E43+938+165","v":{"v":4251,"d":"$4,251.00"}},{"v":0.15,"d":"15.0%"},{"$f":"E41-(E41*F41)","v":{"v":3613.35,"d":"$3,613.35"}}]
[1,"Single Port Wall Mount (can be ceiling mount, single telephone or, street lamp pole mounting)","LiteOn","IC3",{"v":1574,"d":"$1,574.00"},{"v":0.15,"d":"15.0%"},{"$f":"E42-(E42*F42)","v":{"v":1337.9,"d":"$1,337.90"}}]
[1,"Dual Port Wall Mount (can be ceiling mount, single telephone or, street lamp pole mounting)","LiteOn","IC3",{"$f":"E42*2","v":{"v":3148,"d":"$3,148.00"}},{"v":0.15,"d":"15.0%"},{"$f":"E43-(E43*F43)","v":{"v":2675.8,"d":"$2,675.80"}}]
["Accessories & Additional Items"]
["QTY.","DESCRIPTION","MANUFACTURER","MODEL/PART #","UNIT PRICE","DISCOUNT % OFF","FINAL STATE PRICE"]
[1,"Cord Management Kit (most commonly sold cord management kit of suppliers which is sold to end users)","OpConnect","OC-0300-00-027",{"v":1132,"d":"$1,132.00"},{"v":0.15,"d":"15%"},{"$f":"E46-(E46*F46)","v":{"v":962.2,"d":"$962.20"}}]
[1,"Replacement Cord (most commonly sold replacement cord of suppliers which is sold to end users)",{"$nulls":4},{"v":0,"d":"$0.00"}]
[1,"125 Amp 1-Phase 120/208 Volt Sub-Panel (most common sub panel sold by supplier)",{"$nulls":4},{"v":0,"d":"$0.00"}]
[1,"Cellular Repeater (most common repeater used with station)",{"$nulls":4},{"v":0,"d":"$0.00"}]
[1,"Wheel Stops: (Includes material and installation for 1 wheel stop)",{"$nulls":4},{"v":0,"d":"$0.00"}]
[1,"Bollards: (Includes material and installation for 1 bollard)",{"$nulls":4},{"v":0,"d":"$0.00"}]
[1,"Replacement RFID card","OpConnect","OPCONNECT-RFID",{"v":5,"d":"$5.00"},{"v":0.15,"d":"15%"},{"v":4.25,"d":"$4.25"}]
["Services"]
["QTY.","DESCRIPTION","MANUFACTURER","MODEL/PART #","UNIT PRICE","DISCOUNT % OFF","EXTENDED PRICE"]
[1,"One Year Standard Networking (bundled with software) Services offered upon installation and any start up costs for first year. Please provide most commonly offered costs whether it be by license or station.",{"$nulls":4},{"$f":"E55-(E55*F55)","v":{"v":0,"d":"$0.00"}}]
[1,"Basic Asset Management Services/Plan",{"$nulls":4},{"v":0,"d":"$0.00"}]
[1,"Existing EV Station Upgrade, Swap-out from Single Port to Dual Port",{"$nulls":4},{"v":0,"d":"$0.00"}]
[1,"Commissioning (average cost to certify and commission for use 1 EV Charging Station)",{"$nulls":4},{"v":0,"d":"$0.00"}]
[1,"Training/Support to end user (provide as hourly rate)",{"$nulls":4},{"v":0,"d":"$0.00"}]
[1,"Turnkey Maintenance Plan that includes gauranteed up time and preventive maintenance",{"$nulls":4},{"v":0,"d":"$0.00"}]
[1,"Fleet Charging Module (standard software/module provided for average fleet sizes)",{"$nulls":4},{"v":0,"d":"$0.00"}]
[]
["Discount % Catalog Items"]
["Additional items and accessories not offered above can be purchased from this contract at the following % off the most current publicly published price list or catalog.  Offeror must also submit a list of additional items that fit within these areas that may also be purchased via the contract.",{"$nulls":5},{"v":0.15,"d":"15.0%"}]
[]
[]
["Additional Manufacturer # 3"]
["Equipment"]
["QTY.","DESCRIPTION","MANUFACTURER","MODEL/PART #","UNIT PRICE","DISCOUNT % OFF","FINAL STATE PRICE"]
[1,"Single Port Pedestal Mount ","Liteon","IC80",{"$f":"E72+938","v":{"v":3724,"d":"$3,724.00"}},{"v":0.15,"d":"15.0%"},{"$f":"E70-(E70*F70)","v":{"v":3165.4,"d":"$3,165.40"}}]
[1,"Dual Port Pedestal Mount","Liteon","IC80",{"$f":"E73+938+215","v":{"v":6725,"d":"$6,725.00"}},{"v":0.15,"d":"15.0%"},{"$f":"E71-(E71*F71)","v":{"v":5716.25,"d":"$5,716.25"}}]
[1,"Single Port Wall Mount (can be ceiling mount, single telephone or, street lamp pole mounting)","Liteon","IC80",{"v":2786,"d":"$2,786.00"},{"v":0.15,"d":"15.0%"},{"$f":"E72-(E72*F72)","v":{"v":2368.1,"d":"$2,368.10"}}]
[1,"Dual Port Wall Mount (can be ceiling mount, single telephone or, street lamp pole mounting)","Liteon","IC80",{"$f":"E72*2","v":{"v":5572,"d":"$5,572.00"}},{"v":0.15,"d":"15.0%"},{"$f":"E73-(E73*F73)","v":{"v":4736.2,"d":"$4,736.20"}}]
["Accessories & Additional Items"]
["QTY.","DESCRIPTION","MANUFACTURER","MODEL/PART #","UNIT PRICE","DISCOUNT % OFF","FINAL STATE PRICE"]
[1,"Cord Management Kit (most commonly sold cord management kit of suppliers which is sold to end users)",{"$nulls":3},{"v":0.15,"d":"15%"},{"$f":"E76-(E76*F76)","v":{"v":0,"d":"$0.00"}}]
[1,"Replacement Cord (most commonly sold replacement cord of suppliers which is sold to end users)",{"$nulls":4},{"v":0,"d":"$0.00"}]
[1,"125 Amp 1-Phase 120/208 Volt Sub-Panel (most common sub panel sold by supplier)",{"$nulls":4},{"v":0,"d":"$0.00"}]
[1,"Cellular Repeater (most common repeater used with station)",{"$nulls":4},{"v":0,"d":"$0.00"}]
[1,"Wheel Stops: (Includes material and installation for 1 wheel stop)",{"$nulls":4},{"v":0,"d":"$0.00"}]
[1,"Bollards: (Includes material and installation for 1 bollard)",{"$nulls":4},{"v":0,"d":"$0.00"}]
[1,"Replacement RFID card",{"$nulls":3},{"v":0.15,"d":"15%"},{"v":0,"d":"$0.00"}]
["Services"]
["QTY.","DESCRIPTION","MANUFACTURER","MODEL/PART #","UNIT PRICE","DISCOUNT % OFF","EXTENDED PRICE"]
[1,"One Year Standard Networking (bundled with software) Services offered upon installation and any start up costs for first year. Please provide most commonly offered costs whether it be by license or station.",{"$nulls":3},{"v":0.15,"d":"15%"},{"$f":"E85-(E85*F85)","v":{"v":0,"d":"$0.00"}}]
[1,"Basic Asset Management Services/Plan",{"$nulls":4},{"v":0,"d":"$0.00"}]
[1,"Existing EV Station Upgrade, Swap-out from Single Port to Dual Port",{"$nulls":4},{"v":0,"d":"$0.00"}]
[1,"Commissioning (average cost to certify and commission for use 1 EV Charging Station)",{"$nulls":3},{"v":0.15,"d":"15%"},{"v":0,"d":"$0.00"}]
[1,"Training/Support to end user (provide as hourly rate)",{"$nulls":3},{"v":0.15,"d":"15%"},{"v":0,"d":"$0.00"}]
[1,"Turnkey Maintenance Plan that includes gauranteed up time and preventive maintenance","OpConnect ","OP-MAINT-HP02",{"v":315,"d":"$315.00"},{"v":0.15,"d":"15%"},{"v":267.75,"d":"$267.75"}]
[1,"Fleet Charging Module (standard software/module provided for average fleet sizes)",{"$nulls":4},{"v":0,"d":"$0.00"}]
[]
["Discount % Catalog Items"]
["Additional items and accessories not offered above can be purchased from this contract at the following % off the most current publicly published price list or catalog.  Offeror must also submit a list of additional items that fit within these areas that may also be purchased via the contract.",{"$nulls":5},{"v":0.15,"d":"15.0%"}]
[]
[]
["Additional Manufacturer # 4"]
["Equipment"]
["QTY.","DESCRIPTION","MANUFACTURER","MODEL/PART #","UNIT PRICE","DISCOUNT % OFF","FINAL STATE PRICE"]
[1,"Single Port Pedestal Mount ","Liteon","SC80",{"$f":"E102+938","v":{"v":3261,"d":"$3,261.00"}},{"v":0.15,"d":"15.0%"},{"$f":"E100-(E100*F100)","v":{"v":2771.85,"d":"$2,771.85"}}]
[1,"Dual Port Pedestal Mount","Liteon","SC80",{"$f":"E103+938+165","v":{"v":5749,"d":"$5,749.00"}},{"v":0.15,"d":"15.0%"},{"$f":"E101-(E101*F101)","v":{"v":4886.65,"d":"$4,886.65"}}]
[1,"Single Port Wall Mount (can be ceiling mount, single telephone or, street lamp pole mounting)","Liteon","SC80",{"v":2323,"d":"$2,323.00"},{"v":0.15,"d":"15.0%"},{"$f":"E102-(E102*F102)","v":{"v":1974.55,"d":"$1,974.55"}}]
[1,"Dual Port Wall Mount (can be ceiling mount, single telephone or, street lamp pole mounting)","Liteon","SC80",{"$f":"E102*2","v":{"v":4646,"d":"$4,646.00"}},{"v":0.15,"d":"15.0%"},{"$f":"E103-(E103*F103)","v":{"v":3949.1,"d":"$3,949.10"}}]
["Accessories & Additional Items"]
["QTY.","DESCRIPTION","MANUFACTURER","MODEL/PART #","UNIT PRICE","DISCOUNT % OFF","FINAL STATE PRICE"]
[1,"Cord Management Kit (most commonly sold cord management kit of suppliers which is sold to end users)",{"$nulls":3},{"v":0.15,"d":"15%"},{"$f":"E106-(E106*F106)","v":{"v":0,"d":"$0.00"}}]
[1,"Replacement Cord (most commonly sold replacement cord of suppliers which is sold to end users)",{"$nulls":4},{"v":0,"d":"$0.00"}]
[1,"125 Amp 1-Phase 120/208 Volt Sub-Panel (most common sub panel sold by supplier)",{"$nulls":4},{"v":0,"d":"$0.00"}]
[1,"Cellular Repeater (most common repeater used with station)",{"$nulls":4},{"v":0,"d":"$0.00"}]
[1,"Wheel Stops: (Includes material and installation for 1 wheel stop)",{"$nulls":4},{"v":0,"d":"$0.00"}]
[1,"Bollards: (Includes material and installation for 1 bollard)",{"$nulls":4},{"v":0,"d":"$0.00"}]
[1,"Replacement RFID card",{"$nulls":3},{"v":0.15,"d":"15%"},{"v":0,"d":"$0.00"}]
["Services"]
["QTY.","DESCRIPTION","MANUFACTURER","MODEL/PART #","UNIT PRICE","DISCOUNT % OFF","EXTENDED PRICE"]
[1,"One Year Standard Networking (bundled with software) Services offered upon installation and any start up costs for first year. Please provide most commonly offered costs whether it be by license or station.",{"$nulls":3},{"v":0.15,"d":"15%"},{"$f":"E115-(E115*F115)","v":{"v":0,"d":"$0.00"}}]
[1,"Basic Asset Management Services/Plan",{"$nulls":4},{"v":0,"d":"$0.00"}]
[1,"Existing EV Station Upgrade, Swap-out from Single Port to Dual Port",{"$nulls":4},{"v":0,"d":"$0.00"}]
[1,"Commissioning (average cost to certify and commission for use 1 EV Charging Station)",{"$nulls":3},{"v":0.15,"d":"15%"},{"v":0,"d":"$0.00"}]
[1,"Training/Support to end user (provide as hourly rate)",{"$nulls":3},{"v":0.15,"d":"15%"},{"v":0,"d":"$0.00"}]
[1,"Turnkey Maintenance Plan that includes gauranteed up time and preventive maintenance","OpConnect ","OP-MAINT-HP02",{"v":315,"d":"$315.00"},{"v":0.15,"d":"15%"},{"v":267.75,"d":"$267.75"}]
[1,"Fleet Charging Module (standard software/module provided for average fleet sizes)",{"$nulls":4},{"v":0,"d":"$0.00"}]
[]
[]
["Additional Manufacturer # 5"]
["Equipment"]
["QTY.","DESCRIPTION","MANUFACTURER","MODEL/PART #","UNIT PRICE","DISCOUNT % OFF","FINAL STATE PRICE"]
[1,"Single Port Pedestal Mount ","BTC Power (30 A)","L2P-30-240-16-003",{"v":4757,"d":"$4,757.00"},{"v":0.1,"d":"10.0%"},{"$f":"E127-(E127*F127)","v":{"v":4281.3,"d":"$4,281.30"}}]
[1,"Dual Port Pedestal Mount","BTC Power (30 A)","L2P-30-240-15-003",{"v":5450,"d":"$5,450.00"},{"v":0.1,"d":"10.0%"},{"$f":"E128-(E128*F128)","v":{"v":4905,"d":"$4,905.00"}}]
[1,"Single Port Wall Mount (can be ceiling mount, single telephone or, street lamp pole mounting)","BTC Power (30 A)","L2W-30-240-16-003",{"v":4752,"d":"$4,752.00"},{"v":0.1,"d":"10.0%"},{"$f":"E129-(E129*F129)","v":{"v":4276.8,"d":"$4,276.80"}}]
[1,"Dual Port Wall Mount (can be ceiling mount, single telephone or, street lamp pole mounting)","BTC Power (30 A)","L2W-30-240-15-003",{"v":5482,"d":"$5,482.00"},{"v":0.1,"d":"10.0%"},{"$f":"E130-(E130*F130)","v":{"v":4933.8,"d":"$4,933.80"}}]
["Accessories & Additional Items"]
["QTY.","DESCRIPTION","MANUFACTURER","MODEL/PART #","UNIT PRICE","DISCOUNT % OFF","FINAL STATE PRICE"]
[1,"Cord Management Kit (most commonly sold cord management kit of suppliers which is sold to end users)","BTC Power (30 A Retractors)","130-0745-01",{"v":300,"d":"$300.00"},{"v":0.05,"d":"5%"},{"$f":"E133-(E133*F133)","v":{"v":285,"d":"$285.00"}}]
[1,"Replacement Cord (most commonly sold replacement cord of suppliers which is sold to end users)",{"$nulls":4},{"v":0,"d":"$0.00"}]
[1,"125 Amp 1-Phase 120/208 Volt Sub-Panel (most common sub panel sold by supplier)",{"$nulls":4},{"v":0,"d":"$0.00"}]
[1,"Cellular Repeater (most common repeater used with station)",{"$nulls":4},{"v":0,"d":"$0.00"}]
[1,"Wheel Stops: (Includes material and installation for 1 wheel stop)",{"$nulls":4},{"v":0,"d":"$0.00"}]
[1,"Bollards: (Includes material and installation for 1 bollard)",{"$nulls":4},{"v":0,"d":"$0.00"}]
[1,"Replacement RFID card",{"$nulls":3},{"v":0.15,"d":"15%"},{"v":0,"d":"$0.00"}]
["Services"]
["QTY.","DESCRIPTION","MANUFACTURER","MODEL/PART #","UNIT PRICE","DISCOUNT % OFF","EXTENDED PRICE"]
[1,"One Year Standard Networking (bundled with software) Services offered upon installation and any start up costs for first year. Please provide most commonly offered costs whether it be by license or station.",{"$nulls":3},{"v":0.15,"d":"15%"},{"$f":"E142-(E142*F142)","v":{"v":0,"d":"$0.00"}}]
[1,"Basic Asset Management Services/Plan",{"$nulls":4},{"v":0,"d":"$0.00"}]
[1,"Existing EV Station Upgrade, Swap-out from Single Port to Dual Port",{"$nulls":4},{"v":0,"d":"$0.00"}]
[1,"Commissioning (average cost to certify and commission for use 1 EV Charging Station)",{"$nulls":3},{"v":0.15,"d":"15%"},{"v":0,"d":"$0.00"}]
[1,"Training/Support to end user (provide as hourly rate)",{"$nulls":3},{"v":0.15,"d":"15%"},{"v":0,"d":"$0.00"}]
[1,"Turnkey Maintenance Plan that includes gauranteed up time and preventive maintenance",{"$nulls":3},{"v":0.15,"d":"15%"},{"v":0,"d":"$0.00"}]
[1,"Fleet Charging Module (standard software/module provided for average fleet sizes)",{"$nulls":4},{"v":0,"d":"$0.00"}]
[]
[]
["Additional Manufacturer # 6"]
["Equipment"]
["QTY.","DESCRIPTION","MANUFACTURER","MODEL/PART #","UNIT PRICE","DISCOUNT % OFF","FINAL STATE PRICE"]
[1,"Single Port Pedestal Mount ","BTC Power (40 A)","L2P-40-240-16-003",{"v":4881,"d":"$4,881.00"},{"v":0.1,"d":"10.0%"},{"$f":"E154-(E154*F154)","v":{"v":4392.9,"d":"$4,392.90"}}]
[1,"Dual Port Pedestal Mount","BTC Power (40 A)","L2P-40-240-15-003",{"v":5769,"d":"$5,769.00"},{"v":0.1,"d":"10.0%"},{"$f":"E155-(E155*F155)","v":{"v":5192.1,"d":"$5,192.10"}}]
[1,"Single Port Wall Mount (can be ceiling mount, single telephone or, street lamp pole mounting)","BTC Power (40 A)","L2W-40-240-16-003",{"v":4841,"d":"$4,841.00"},{"v":0.1,"d":"10.0%"},{"$f":"E156-(E156*F156)","v":{"v":4356.9,"d":"$4,356.90"}}]
[1,"Dual Port Wall Mount (can be ceiling mount, single telephone or, street lamp pole mounting)","BTC Power (40 A)","L2W-40-240-15-003",{"v":5840,"d":"$5,840.00"},{"v":0.1,"d":"10.0%"},{"$f":"E157-(E157*F157)","v":{"v":5256,"d":"$5,256.00"}}]
["Accessories & Additional Items"]
["QTY.","DESCRIPTION","MANUFACTURER","MODEL/PART #","UNIT PRICE","DISCOUNT % OFF","FINAL STATE PRICE"]
[1,"Cord Management Kit (most commonly sold cord management kit of suppliers which is sold to end users)","BTC Power (40 A Retractors)","130-0746-01",{"v":350,"d":"$350.00"},{"v":0.05,"d":"5%"},{"$f":"E160-(E160*F160)","v":{"v":332.5,"d":"$332.50"}}]
[1,"Replacement Cord (most commonly sold replacement cord of suppliers which is sold to end users)",{"$nulls":4},{"v":0,"d":"$0.00"}]
[1,"125 Amp 1-Phase 120/208 Volt Sub-Panel (most common sub panel sold by supplier)",{"$nulls":4},{"v":0,"d":"$0.00"}]
[1,"Cellular Repeater (most common repeater used with station)",{"$nulls":4},{"v":0,"d":"$0.00"}]
[1,"Wheel Stops: (Includes material and installation for 1 wheel stop)",{"$nulls":4},{"v":0,"d":"$0.00"}]
[1,"Bollards: (Includes material and installation for 1 bollard)",{"$nulls":4},{"v":0,"d":"$0.00"}]
[1,"Replacement RFID card",{"$nulls":3},{"v":0.15,"d":"15%"},{"v":0,"d":"$0.00"}]
["Services"]
["QTY.","DESCRIPTION","MANUFACTURER","MODEL/PART #","UNIT PRICE","DISCOUNT % OFF","EXTENDED PRICE"]
[1,"One Year Standard Networking (bundled with software) Services offered upon installation and any start up costs for first year. Please provide most commonly offered costs whether it be by license or station.",{"$nulls":3},{"v":0.15,"d":"15%"},{"$f":"E169-(E169*F169)","v":{"v":0,"d":"$0.00"}}]
[1,"Basic Asset Management Services/Plan",{"$nulls":4},{"v":0,"d":"$0.00"}]
[1,"Existing EV Station Upgrade, Swap-out from Single Port to Dual Port",{"$nulls":4},{"v":0,"d":"$0.00"}]
[1,"Commissioning (average cost to certify and commission for use 1 EV Charging Station)",{"$nulls":3},{"v":0.15,"d":"15%"},{"v":0,"d":"$0.00"}]
[1,"Training/Support to end user (provide as hourly rate)",{"$nulls":3},{"v":0.15,"d":"15%"},{"v":0,"d":"$0.00"}]
[1,"Turnkey Maintenance Plan that includes gauranteed up time and preventive maintenance",{"$nulls":3},{"v":0.15,"d":"15%"},{"v":0,"d":"$0.00"}]
[1,"Fleet Charging Module (standard software/module provided for average fleet sizes)",{"$nulls":4},{"v":0,"d":"$0.00"}]
[]
["Additional Manufacturer # 7"]
["Equipment"]
["QTY.","DESCRIPTION","MANUFACTURER","MODEL/PART #","UNIT PRICE","DISCOUNT % OFF","FINAL STATE PRICE"]
[1,"Single Port Pedestal Mount ","BTC Power (70 A)","L2P-70-240-16-003",{"v":5094,"d":"$5,094.00"},{"v":0.1,"d":"10.0%"},{"$f":"E180-(E180*F180)","v":{"v":4584.6,"d":"$4,584.60"}}]
[1,"Dual Port Pedestal Mount","N/A","N/A",null,{"v":0.1,"d":"10.0%"},{"$f":"E181-(E181*F181)","v":{"v":0,"d":"$0.00"}}]
[1,"Single Port Wall Mount (can be ceiling mount, single telephone or, street lamp pole mounting)","BTC Power (70 A)","L2W-70-240-16-003",{"v":4973,"d":"$4,973.00"},{"v":0.1,"d":"10.0%"},{"$f":"E182-(E182*F182)","v":{"v":4475.7,"d":"$4,475.70"}}]
[1,"Dual Port Wall Mount (can be ceiling mount, single telephone or, street lamp pole mounting)","N/A","N/A",null,{"v":0.1,"d":"10.0%"},{"$f":"E183-(E183*F183)","v":{"v":0,"d":"$0.00"}}]
["Accessories & Additional Items"]
["QTY.","DESCRIPTION","MANUFACTURER","MODEL/PART #","UNIT PRICE","DISCOUNT % OFF","FINAL STATE PRICE"]
[1,"Cord Management Kit (most commonly sold cord management kit of suppliers which is sold to end users)","BTC Power (70 A Retractors)","130-0746-01",{"v":350,"d":"$350.00"},{"v":0.05,"d":"5%"},{"$f":"E186-(E186*F186)","v":{"v":332.5,"d":"$332.50"}}]
[1,"Replacement Cord (most commonly sold replacement cord of suppliers which is sold to end users)",{"$nulls":4},{"v":0,"d":"$0.00"}]
[1,"125 Amp 1-Phase 120/208 Volt Sub-Panel (most common sub panel sold by supplier)",{"$nulls":4},{"v":0,"d":"$0.00"}]
[1,"Cellular Repeater (most common repeater used with station)",{"$nulls":4},{"v":0,"d":"$0.00"}]
[1,"Wheel Stops: (Includes material and installation for 1 wheel stop)",{"$nulls":4},{"v":0,"d":"$0.00"}]
[1,"Bollards: (Includes material and installation for 1 bollard)",{"$nulls":4},{"v":0,"d":"$0.00"}]
[1,"Replacement RFID card",{"$nulls":3},{"v":0.15,"d":"15%"},{"v":0,"d":"$0.00"}]
["Services"]
["QTY.","DESCRIPTION","MANUFACTURER","MODEL/PART #","UNIT PRICE","DISCOUNT % OFF","EXTENDED PRICE"]
[1,"One Year Standard Networking (bundled with software) Services offered upon installation and any start up costs for first year. Please provide most commonly offered costs whether it be by license or station.",{"$nulls":3},{"v":0.15,"d":"15%"},{"$f":"E195-(E195*F195)","v":{"v":0,"d":"$0.00"}}]
[1,"Basic Asset Management Services/Plan",{"$nulls":4},{"v":0,"d":"$0.00"}]
[1,"Existing EV Station Upgrade, Swap-out from Single Port to Dual Port",{"$nulls":4},{"v":0,"d":"$0.00"}]
[1,"Commissioning (average cost to certify and commission for use 1 EV Charging Station)",{"$nulls":3},{"v":0.15,"d":"15%"},{"v":0,"d":"$0.00"}]
[1,"Training/Support to end user (provide as hourly rate)",{"$nulls":3},{"v":0.15,"d":"15%"},{"v":0,"d":"$0.00"}]
[1,"Turnkey Maintenance Plan that includes gauranteed up time and preventive maintenance",{"$nulls":3},{"v":0.15,"d":"15%"},{"v":0,"d":"$0.00"}]
[1,"Fleet Charging Module (standard software/module provided for average fleet sizes)",{"$nulls":4},{"v":0,"d":"$0.00"}]
[]
["Additional Manufacturer # 8"]
["Equipment"]
["QTY.","DESCRIPTION","MANUFACTURER","MODEL/PART #","UNIT PRICE","DISCOUNT % OFF","FINAL STATE PRICE"]
[1,"Single Port Pedestal Mount ",{"$nulls":3},{"v":0.1,"d":"10.00%"},{"v":0,"d":"$0.00"}]
[1,"Dual Port Pedestal Mount",{"$nulls":3},{"v":0.1,"d":"10.00%"},{"v":0,"d":"$0.00"}]
[1,"Single Port Wall Mount (can be ceiling mount, single telephone or, street lamp pole mounting)","ClipperCreek","HCS-40R-C17-L25-170",{"v":916,"d":"$916.00"},{"v":0.1,"d":"10.00%"},{"v":824.4,"d":"$824.40"}]
[1,"Dual Port Wall Mount (can be ceiling mount, single telephone or, street lamp pole mounting)",{"$nulls":3},{"v":0.1,"d":"10.00%"},{"v":0,"d":"$0.00"}]
["Accessories & Additional Items"]
["QTY.","DESCRIPTION","MANUFACTURER","MODEL/PART #","UNIT PRICE","DISCOUNT % OFF","FINAL STATE PRICE"]
[1,"Single Cord Wall Management Kit (most commonly sold cord management kit of suppliers which is sold to end users)","Enphase","HCS-WALLMOUNT-RETRACTOR-CC",{"v":549,"d":"$549.00"},{"v":0.15,"d":"15%"},{"v":521.55,"d":"$521.55"}]
[1,"Dual Pedestal Cord Management Kit (most commonly sold cord management kit of suppliers which is sold to end users)","OpConnect","OC-0300-00-028 ",{"v":1605,"d":"$1,605.00"},{"v":0.15,"d":"15%"},{"v":1524.75,"d":"$1,524.75"}]
[1,"Pedestal (Can be single or Dual Mounted)","OpConnect","OC-00-024 ",{"v":938,"d":"$938.00"},{"v":0.15,"d":"15%"},{"v":891.1,"d":"$891.10"}]
[1,"Dual Mounting Kit","OpConnect","OC-00-030-HCS",{"v":215,"d":"$215.00"},{"v":0.15,"d":"15%"},{"v":204.25,"d":"$204.25"}]
[1,"Cellular Repeater (most common repeater used with station)",{"$nulls":4},{"v":0,"d":"$0.00"}]
[1,"Wheel Stops: (Includes material and installation for 1 wheel stop)",{"$nulls":4},{"v":0,"d":"$0.00"}]
[1,"Bollards: (Includes material and installation for 1 bollard)",{"$nulls":4},{"v":0,"d":"$0.00"}]
[1,"Replacement RFID card",{"$nulls":4},{"v":0,"d":"$0.00"}]
["Services"]
["QTY.","DESCRIPTION","MANUFACTURER","MODEL/PART #","UNIT PRICE","DISCOUNT % OFF","EXTENDED PRICE"]
[1,"One Year Standard Networking (bundled with software) Services offered upon installation and any start up costs for first year. Please provide most commonly offered costs whether it be by license or station.",{"$nulls":4},{"v":0,"d":"$0.00"}]
[1,"Basic Asset Management Services/Plan",{"$nulls":4},{"v":0,"d":"$0.00"}]
[1,"Existing EV Station Upgrade, Swap-out from Single Port to Dual Port",{"$nulls":4},{"v":0,"d":"$0.00"}]
[1,"Commissioning (average cost to certify and commission for use 1 EV Charging Station)","OpConnect","OP-ACTIVATION-L2",{"v":75,"d":"$75.00"},{"v":0.15,"d":"15%"},{"v":63.75,"d":"$63.75"}]
[1,"Training/Support to end user (provide as hourly rate)","OpConnect","OP-TRAINING",{"v":0,"d":"$0.00"},{"v":0.15,"d":"15%"},{"v":0,"d":"$0.00"}]
[1,"Turnkey Maintenance Plan that includes gauranteed up time and preventive maintenance","OpConnect ","OP-MAINT-02",{"v":275,"d":"$275.00"},{"v":0.15,"d":"15%"},{"v":233.75,"d":"$233.75"}]
[1,"Fleet Charging Module (standard software/module provided for average fleet sizes)",{"$nulls":4},{"v":0,"d":"$0.00"}]
[]
[]
["Additional Manufacturer # 9"]
["Equipment"]
["QTY.","DESCRIPTION","MANUFACTURER","MODEL/PART #","UNIT PRICE","DISCOUNT % OFF","FINAL STATE PRICE"]
[1,"Single Port Pedestal Mount ",{"$nulls":4},{"v":0,"d":"$0.00"}]
[1,"Dual Port Pedestal Mount",{"$nulls":4},{"v":0,"d":"$0.00"}]
[1,"Single Port Wall Mount (can be ceiling mount, single telephone or, street lamp pole mounting)","ClipperCreek","HCS-50R-C29-L25-280",{"v":1011,"d":"$1,011.00"},{"v":0.1,"d":"10.00%"},{"v":909.9,"d":"$909.90"}]
[1,"Dual Port Wall Mount (can be ceiling mount, single telephone or, street lamp pole mounting)",{"$nulls":4},{"v":0,"d":"$0.00"}]
["Accessories & Additional Items"]
["QTY.","DESCRIPTION","MANUFACTURER","MODEL/PART #","UNIT PRICE","DISCOUNT % OFF","FINAL STATE PRICE"]
[1,"Single Cord Wall Management Kit (most commonly sold cord management kit of suppliers which is sold to end users)","Enphase","HCS-WALLMOUNT-RETRACTOR-CC",{"v":549,"d":"$549.00"},{"v":0.15,"d":"15%"},{"v":521.55,"d":"$521.55"}]
[1,"Dual Pedestal Cord Management Kit (most commonly sold cord management kit of suppliers which is sold to end users)","OpConnect","OC-0300-00-028 ",{"v":1605,"d":"$1,605.00"},{"v":0.15,"d":"15%"},{"v":1524.75,"d":"$1,524.75"}]
[1,"Pedestal (Can be single or Dual Mounted)","OpConnect","OC-00-024 ",{"v":938,"d":"$938.00"},{"v":0.15,"d":"15%"},{"v":891.1,"d":"$891.10"}]
[1,"Dual Mounting Kit","OpConnect","OC-00-030-HCS",{"v":215,"d":"$215.00"},{"v":0.15,"d":"15%"},{"v":204.25,"d":"$204.25"}]
[1,"Cellular Repeater (most common repeater used with station)",{"$nulls":4},{"v":0,"d":"$0.00"}]
[1,"Wheel Stops: (Includes material and installation for 1 wheel stop)",{"$nulls":4},{"v":0,"d":"$0.00"}]
[1,"Bollards: (Includes material and installation for 1 bollard)",{"$nulls":4},{"v":0,"d":"$0.00"}]
[1,"Replacement RFID card",{"$nulls":4},{"v":0,"d":"$0.00"}]
["Services"]
["QTY.","DESCRIPTION","MANUFACTURER","MODEL/PART #","UNIT PRICE","DISCOUNT % OFF","EXTENDED PRICE"]
[1,"One Year Standard Networking (bundled with software) Services offered upon installation and any start up costs for first year. Please provide most commonly offered costs whether it be by license or station.",{"$nulls":4},{"v":0,"d":"$0.00"}]
[1,"Basic Asset Management Services/Plan",{"$nulls":4},{"v":0,"d":"$0.00"}]
[1,"Existing EV Station Upgrade, Swap-out from Single Port to Dual Port",{"$nulls":4},{"v":0,"d":"$0.00"}]
[1,"Commissioning (average cost to certify and commission for use 1 EV Charging Station)","OpConnect","OP-ACTIVATION-L2",{"v":75,"d":"$75.00"},{"v":0.15,"d":"15%"},{"v":63.75,"d":"$63.75"}]
[1,"Training/Support to end user (provide as hourly rate)","OpConnect","OP-TRAINING",{"v":0,"d":"$0.00"},{"v":0.15,"d":"15%"},{"v":0,"d":"$0.00"}]
[1,"Turnkey Maintenance Plan that includes gauranteed up time and preventive maintenance","OpConnect ","OP-MAINT-02",{"v":275,"d":"$275.00"},{"v":0.15,"d":"15%"},{"v":233.75,"d":"$233.75"}]
[1,"Fleet Charging Module (standard software/module provided for average fleet sizes)",{"$nulls":4},{"v":0,"d":"$0.00"}]
[]
[]
["Additional Manufacturer # 10"]
["Equipment"]
["QTY.","DESCRIPTION","MANUFACTURER","MODEL/PART #","UNIT PRICE","DISCOUNT % OFF","FINAL STATE PRICE"]
[1,"Single Port Pedestal Mount ",{"$nulls":4},{"v":0,"d":"$0.00"}]
[1,"Dual Port Pedestal Mount",{"$nulls":4},{"v":0,"d":"$0.00"}]
[1,"Single Port Wall Mount (can be ceiling mount, single telephone or, street lamp pole mounting)","ClipperCreek","HCS-60R-C22-L25-179",{"v":1374,"d":"$1,374.00"},{"v":0.1,"d":"10.00%"},{"v":1236.6,"d":"$1,236.60"}]
[1,"Dual Port Wall Mount (can be ceiling mount, single telephone or, street lamp pole mounting)",{"$nulls":4},{"v":0,"d":"$0.00"}]
["Accessories & Additional Items"]
["QTY.","DESCRIPTION","MANUFACTURER","MODEL/PART #","UNIT PRICE","DISCOUNT % OFF","FINAL STATE PRICE"]
[1,"Single Cord Wall Management Kit (most commonly sold cord management kit of suppliers which is sold to end users)","Enphase","HCS-WALLMOUNT-RETRACTOR-CC",{"v":549,"d":"$549.00"},{"v":0.15,"d":"15%"},{"$f":"E268-(E268*F268)","v":{"v":466.65,"d":"$466.65"}}]
[1,"Dual Pedestal Cord Management Kit (most commonly sold cord management kit of suppliers which is sold to end users)","OpConnect","OC-0300-00-028 ",{"v":1605,"d":"$1,605.00"},{"v":0.15,"d":"15%"},{"$f":"E269-(E269*F269)","v":{"v":1364.25,"d":"$1,364.25"}}]
[1,"Pedestal (Can be single or Dual Mounted)","OpConnect","OC-00-024 ",{"v":938,"d":"$938.00"},{"v":0.15,"d":"15%"},{"v":797.3,"d":"$797.30"}]
[1,"Dual Mounting Kit","OpConnect","OC-00-030-HCS",{"v":215,"d":"$215.00"},{"v":0.15,"d":"15%"},{"v":182.75,"d":"$182.75"}]
[1,"Cellular Repeater (most common repeater used with station)",{"$nulls":4},{"v":0,"d":"$0.00"}]
[1,"Wheel Stops: (Includes material and installation for 1 wheel stop)",{"$nulls":4},{"v":0,"d":"$0.00"}]
[1,"Bollards: (Includes material and installation for 1 bollard)",{"$nulls":4},{"v":0,"d":"$0.00"}]
[1,"Replacement RFID card",{"$nulls":4},{"v":0,"d":"$0.00"}]
["Services"]
["QTY.","DESCRIPTION","MANUFACTURER","MODEL/PART #","UNIT PRICE","DISCOUNT % OFF","EXTENDED PRICE"]
[1,"One Year Standard Networking (bundled with software) Services offered upon installation and any start up costs for first year. Please provide most commonly offered costs whether it be by license or station.",{"$nulls":4},{"v":0,"d":"$0.00"}]
[1,"Basic Asset Management Services/Plan",{"$nulls":4},{"v":0,"d":"$0.00"}]
[1,"Existing EV Station Upgrade, Swap-out from Single Port to Dual Port",{"$nulls":4},{"v":0,"d":"$0.00"}]
[1,"Commissioning (average cost to certify and commission for use 1 EV Charging Station)","OpConnect","OP-ACTIVATION-L2",{"v":75,"d":"$75.00"},{"v":0.15,"d":"15%"},{"v":63.75,"d":"$63.75"}]
[1,"Training/Support to end user (provide as hourly rate)","OpConnect","OP-TRAINING",{"v":0,"d":"$0.00"},{"v":0.15,"d":"15%"},{"v":0,"d":"$0.00"}]
[1,"Turnkey Maintenance Plan that includes gauranteed up time and preventive maintenance","OpConnect ","OP-MAINT-02",{"v":275,"d":"$275.00"},{"v":0.15,"d":"15%"},{"v":233.75,"d":"$233.75"}]
[1,"Fleet Charging Module (standard software/module provided for average fleet sizes)",{"$nulls":4},{"v":0,"d":"$0.00"}]
[]
["Additional Manufacturer # 11"]
["Equipment"]
["QTY.","DESCRIPTION","MANUFACTURER","MODEL/PART #","UNIT PRICE","DISCOUNT % OFF","FINAL STATE PRICE"]
[1,"Single Port Pedestal Mount ",{"$nulls":4},{"v":0,"d":"$0.00"}]
[1,"Dual Port Pedestal Mount",{"$nulls":4},{"v":0,"d":"$0.00"}]
[1,"Single Port Wall Mount (can be ceiling mount, single telephone or, street lamp pole mounting)","ClipperCreek","HCS-80-C16-L25-160-CC",{"v":1333,"d":"$1,333.00"},{"v":0.1,"d":"10.00%"},{"$f":"E291-(E291*F291)","v":{"v":1199.7,"d":"$1,199.70"}}]
[1,"Dual Port Wall Mount (can be ceiling mount, single telephone or, street lamp pole mounting)",{"$nulls":4},{"v":0,"d":"$0.00"}]
["Accessories & Additional Items"]
["QTY.","DESCRIPTION","MANUFACTURER","MODEL/PART #","UNIT PRICE","DISCOUNT % OFF","FINAL STATE PRICE"]
[1,"Single Cord Wall Management Kit (most commonly sold cord management kit of suppliers which is sold to end users)","Enphase","HCS-WALLMOUNT-RETRACTOR-CC",{"v":549,"d":"$549.00"},{"v":0.15,"d":"15%"},{"$f":"E295-(E295*F295)","v":{"v":466.65,"d":"$466.65"}}]
[1,"Dual Pedestal Cord Management Kit (most commonly sold cord management kit of suppliers which is sold to end users)","OpConnect","OC-0300-00-028 ",{"v":1605,"d":"$1,605.00"},{"v":0.15,"d":"15%"},{"v":1364.25,"d":"$1,364.25"}]
[1,"Pedestal (Can be single or Dual Mounted)","OpConnect","OC-00-024 ",{"v":938,"d":"$938.00"},{"v":0.15,"d":"15%"},{"$f":"E297-(E297*F297)","v":{"v":797.3,"d":"$797.30"}}]
[1,"Dual Mounting Kit","OpConnect","OC-00-030-HCS",{"v":215,"d":"$215.00"},{"v":0.15,"d":"15%"},{"$f":"E298-(E298*F298)","v":{"v":182.75,"d":"$182.75"}}]
[1,"Cellular Repeater (most common repeater used with station)",{"$nulls":4},{"v":0,"d":"$0.00"}]
[1,"Wheel Stops: (Includes material and installation for 1 wheel stop)",{"$nulls":4},{"v":0,"d":"$0.00"}]
[1,"Bollards: (Includes material and installation for 1 bollard)",{"$nulls":4},{"v":0,"d":"$0.00"}]
[1,"Replacement RFID card",{"$nulls":4},{"v":0,"d":"$0.00"}]
["Services"]
["QTY.","DESCRIPTION","MANUFACTURER","MODEL/PART #","UNIT PRICE","DISCOUNT % OFF","EXTENDED PRICE"]
[1,"One Year Standard Networking (bundled with software) Services offered upon installation and any start up costs for first year. Please provide most commonly offered costs whether it be by license or station.",{"$nulls":4},{"v":0,"d":"$0.00"}]
[1,"Basic Asset Management Services/Plan",{"$nulls":4},{"v":0,"d":"$0.00"}]
[1,"Existing EV Station Upgrade, Swap-out from Single Port to Dual Port",{"$nulls":4},{"v":0,"d":"$0.00"}]
[1,"Commissioning (average cost to certify and commission for use 1 EV Charging Station)","OpConnect","OP-ACTIVATION-L2",{"v":100,"d":"$100.00"},{"v":0.15,"d":"15%"},{"v":63.75,"d":"$63.75"}]
[1,"Training/Support to end user (provide as hourly rate)","OpConnect","OP-TRAINING",{"v":0,"d":"$0.00"},{"v":0.15,"d":"15%"},{"v":0,"d":"$0.00"}]
[1,"Turnkey Maintenance Plan that includes gauranteed up time and preventive maintenance","OpConnect ","OP-MAINT-02",{"v":315,"d":"$315.00"},{"v":0.15,"d":"15%"},{"v":267.75,"d":"$267.75"}]
[1,"Fleet Charging Module (standard software/module provided for average fleet sizes)",{"$nulls":4},{"v":0,"d":"$0.00"}]
[]
["Additional Manufacturer # 12"]
["Equipment"]
["QTY.","DESCRIPTION","MANUFACTURER","MODEL/PART #","UNIT PRICE","DISCOUNT % OFF","FINAL STATE PRICE"]
[1,"Single Port Pedestal Mount ",{"$nulls":4},{"v":0,"d":"$0.00"}]
[1,"Dual Port Pedestal Mount",{"$nulls":4},{"v":0,"d":"$0.00"}]
[1,"Single Port Wall Mount (can be ceiling mount, single telephone or, street lamp pole mounting)","ClipperCreek","CS-100-C16-L25-107",{"v":3038,"d":"$3,038.00"},{"v":0.1,"d":"10.00%"},{"v":2734.2,"d":"$2,734.20"}]
[1,"Dual Port Wall Mount (can be ceiling mount, single telephone or, street lamp pole mounting)",{"$nulls":4},{"v":0,"d":"$0.00"}]
["Accessories & Additional Items"]
["QTY.","DESCRIPTION","MANUFACTURER","MODEL/PART #","UNIT PRICE","DISCOUNT % OFF","FINAL STATE PRICE"]
[1,"Single Cord Wall Management Kit (most commonly sold cord management kit of suppliers which is sold to end users)","Enphase","HCS-WALLMOUNT-RETRACTOR-CC",{"v":549,"d":"$549.00"},{"v":0.15,"d":"15%"},{"v":521.55,"d":"$521.55"}]
[1,"Dual Pedestal Cord Management Kit (most commonly sold cord management kit of suppliers which is sold to end users)","OpConnect","OC-0300-00-028 ",{"v":1605,"d":"$1,605.00"},{"v":0.15,"d":"15%"},{"v":1524.75,"d":"$1,524.75"}]
[1,"Pedestal (Can be single or Dual Mounted)","OpConnect","OC-00-024 ",{"v":938,"d":"$938.00"},{"v":0.15,"d":"15%"},{"v":891.1,"d":"$891.10"}]
[1,"Dual Mounting Kit","OpConnect","OC-00-030-HCS",{"v":215,"d":"$215.00"},{"v":0.15,"d":"15%"},{"v":204.25,"d":"$204.25"}]
[1,"Cellular Repeater (most common repeater used with station)",{"$nulls":4},{"v":0,"d":"$0.00"}]
[1,"Wheel Stops: (Includes material and installation for 1 wheel stop)",{"$nulls":4},{"v":0,"d":"$0.00"}]
[1,"Bollards: (Includes material and installation for 1 bollard)",{"$nulls":4},{"v":0,"d":"$0.00"}]
[1,"Replacement RFID card",{"$nulls":3},{"v":0.15,"d":"15%"},{"v":0,"d":"$0.00"}]
["Services"]
["QTY.","DESCRIPTION","MANUFACTURER","MODEL/PART #","UNIT PRICE","DISCOUNT % OFF","EXTENDED PRICE"]
[1,"One Year Standard Networking (bundled with software) Services offered upon installation and any start up costs for first year. Please provide most commonly offered costs whether it be by license or station.",{"$nulls":4},{"v":0,"d":"$0.00"}]
[1,"Basic Asset Management Services/Plan",{"$nulls":4},{"v":0,"d":"$0.00"}]
[1,"Existing EV Station Upgrade, Swap-out from Single Port to Dual Port",{"$nulls":4},{"v":0,"d":"$0.00"}]
[1,"Commissioning (average cost to certify and commission for use 1 EV Charging Station)","OpConnect","OP-ACTIVATION-L2",{"v":100,"d":"$100.00"},{"v":0.15,"d":"15%"},{"v":63.75,"d":"$63.75"}]
[1,"Training/Support to end user (provide as hourly rate)","OpConnect","OP-TRAINING",{"v":0,"d":"$0.00"},{"v":0.15,"d":"15%"},{"v":0,"d":"$0.00"}]
[1,"Turnkey Maintenance Plan that includes gauranteed up time and preventive maintenance","OpConnect ","OP-MAINT-02",{"v":315,"d":"$315.00"},{"v":0.15,"d":"15%"},{"v":267.75,"d":"$267.75"}]
[1,"Fleet Charging Module (standard software/module provided for average fleet sizes)",{"$nulls":4},{"v":0,"d":"$0.00"}]

{"sheet":"+ Optional - Category 2","index":5,"n_rows":119,"n_cols":7,"rows_kept":119,"merged":[[0,0,0,6],[1,0,1,6],[3,0,3,1],[5,0,5,6],[6,0,6,6],[11,0,11,6],[20,0,20,6],[30,0,30,6],[31,0,31,5],[34,0,34,6],[35,0,35,6],[40,0,40,6],[49,0,49,6],[59,0,59,6],[60,0,60,5],[63,0,63,6],[64,0,64,6],[69,0,69,6],[78,0,78,6],[88,0,88,6],[89,0,89,5],[92,0,92,6],[93,0,93,6],[98,0,98,6],[107,0,107,6],[117,0,117,6],[118,0,118,5]]}
["OPTIONAL - Category 2 - Level 3 DC Fast Charger"]
["This tab is to be used if supplier will offer additional manufacturers if they are awarded a contract. This tab is NOT used for scoring and awarding but required to be completed if supplier is planning on offering additional manufacturers.  There are 4 tables to add up to 4 additional manufacturers.  If supplier offers more than 4, they may copy and paste the table at the bottom to add additional manufacturers.  As this is not used for scoring and awarding, these tables DO NOT need to have each line item filled out."]
[]
["How many additional manufacturers does supplier offer"]
[]
["Additional Manufacturer # 1"]
["Equipment"]
["QTY.","DESCRIPTION","MANUFACTURER","MODEL/PART #","UNIT PRICE","DISCOUNT % OFF","FINAL ITEM COST"]
[1,"All In One Single Unit Station (Power Cabinet and Dispenser)","ABB","Terra 124 CC HC + CCR / 6AGC112997",{"v":91582.1,"d":"$91,582.10"},{"v":0.3,"d":"30%"},{"$f":"E9-(E9*F9)","v":{"v":64107.47,"d":"$64,107.47"}}]
[]
[]
["Accessories & Additional Items"]
["QTY.","DESCRIPTION","MANUFACTURER","MODEL/PART #","UNIT PRICE","DISCOUNT % OFF","FINAL ITEM COST"]
[1,"Cord Management Kit (most commonly sold cord management kit of suppliers which is sold to end users)","ABB","TL40025683819003",{"v":1898.67,"d":"$1,898.67"},{"v":0.2,"d":"20%"},{"$f":"E14-(E14*F14)","v":{"v":1518.9360000000001,"d":"$1,518.94"}}]
[1,"Replacement Cord (most commonly sold replacement cord of suppliers which is sold to end users)",{"$nulls":4},{"v":0,"d":"$0.00"}]
[1,"480 Volt Sub-Panel (most commonly sold by supplier)",{"$nulls":4},{"v":0,"d":"$0.00"}]
[1,"Cellular Repeater (most common repeater used with station)",{"$nulls":4},{"v":0,"d":"$0.00"}]
[1,"Wheel Stops: (Includes material and installation for 1 wheel stop)",{"$nulls":4},{"v":0,"d":"$0.00"}]
[1,"Bollards: (Includes material and installation for 1 bollard)",{"$nulls":4},{"v":0,"d":"$0.00"}]
[1,"Replacement RFID card",{"$nulls":4},{"v":0,"d":"$0.00"}]
["Services"]
["QTY.","DESCRIPTION","MANUFACTURER","MODEL/PART #","UNIT PRICE","DISCOUNT % OFF","FINAL ITEM COST"]
[1,"Networking (bundled with software) - Annual network data fees (including start up and initiation costs)",null,"OP-NOC3-L3-1",{"v":500,"d":"$500.00"},{"v":0.2,"d":"20%"},{"$f":"E23-(E23*F23)","v":{"v":400,"d":"$400.00"}}]
[1,"Basic Asset Management Services/Plan",{"$nulls":4},{"v":0,"d":"$0.00"}]
[1,"Existing EV Station Upgrade, Swap-out from Single Port to Dual Port",{"$nulls":4},{"v":0,"d":"$0.00"}]
[1,"Commissioning (average cost to certify and commission for use 1 EV Charging Station)",null,"OP-PROVISION-DCFC",{"v":2400,"d":"$2,400.00"},{"v":0.1,"d":"10%"},{"v":2160,"d":"$2,160.00"}]
[1,"Training/Support to end user (provide as hourly rate)",null,"OP-TRAINING",{"v":0,"d":"$0.00"},{"v":0.15,"d":"15%"},{"v":0,"d":"$0.00"}]
[1,"Turnkey Maintenance Plan that includes gauranteed up time and preventive maintenance",null,"6AGC084266 + 6AGX000022*",{"$f":"6134.36+1661.32","v":{"v":7795.679999999999,"d":"$7,795.68"}},{"v":0.15,"d":"15%"},{"v":6626.3279999999995,"d":"$6,626.33"}]
[1,"Fleet Charging Module (standard software/module provided for average fleet sizes)",{"$nulls":4},{"v":0,"d":"$0.00"}]
[]
["Discount % Catalog Items"]
["Additional items and accessories not offered above can be purchased from this contract at the following % off the most current publicly published price list or catalog.  Offeror must also submit a list of additional items that fit within these areas that may also be purchased via the contract.",{"$nulls":5},{"v":0.15,"d":"15.0%"}]
[]
[]
["Additional Manufacturer # 2"]
["Equipment"]
["QTY.","DESCRIPTION","MANUFACTURER","MODEL/PART #","UNIT PRICE","DISCOUNT % OFF","FINAL ITEM COST"]
[1,"All In One Single Unit Station (Power Cabinet and Dispenser)","ABB","Terra 184 CC HC + CCR / 6AGC112876",{"v":104339.57,"d":"$104,339.57"},{"v":0.3,"d":"30%"},{"$f":"E38-(E38*F38)","v":{"v":73037.69900000001,"d":"$73,037.70"}}]
[]
[]
["Accessories & Additional Items"]
["QTY.","DESCRIPTION","MANUFACTURER","MODEL/PART #","UNIT PRICE","DISCOUNT % OFF","FINAL ITEM COST"]
[1,"Cord Management Kit (most commonly sold cord management kit of suppliers which is sold to end users)","ABB","TL40025683819003",{"v":1898.67,"d":"$1,898.67"},{"v":0.2,"d":"20%"},{"$f":"E43-(E43*F43)","v":{"v":1518.9360000000001,"d":"$1,518.94"}}]
[1,"Replacement Cord (most commonly sold replacement cord of suppliers which is sold to end users)",{"$nulls":4},{"v":0,"d":"$0.00"}]
[1,"480 Volt Sub-Panel (most commonly sold by supplier)",{"$nulls":4},{"v":0,"d":"$0.00"}]
[1,"Cellular Repeater (most common repeater used with station)",{"$nulls":4},{"v":0,"d":"$0.00"}]
[1,"Wheel Stops: (Includes material and installation for 1 wheel stop)",{"$nulls":4},{"v":0,"d":"$0.00"}]
[1,"Bollards: (Includes material and installation for 1 bollard)",{"$nulls":4},{"v":0,"d":"$0.00"}]
[1,"Replacement RFID card","OpConnect","OPCONNECT-RFID",{"v":5,"d":"$5.00"},{"v":0.15,"d":"15%"},{"v":4.25,"d":"$4.25"}]
["Services"]
["QTY.","DESCRIPTION","MANUFACTURER","MODEL/PART #","UNIT PRICE","DISCOUNT % OFF","FINAL ITEM COST"]
[1,"Networking (bundled with software) - Annual network data fees (including start up and initiation costs)",null,"OP-NOC3-L3-1",{"v":500,"d":"$500.00"},{"v":0.2,"d":"20%"},{"$f":"E52-(E52*F52)","v":{"v":400,"d":"$400.00"}}]
[1,"Basic Asset Management Services/Plan",{"$nulls":4},{"v":0,"d":"$0.00"}]
[1,"Existing EV Station Upgrade, Swap-out from Single Port to Dual Port",{"$nulls":4},{"v":0,"d":"$0.00"}]
[1,"Commissioning (average cost to certify and commission for use 1 EV Charging Station)",null,"OP-PROVISION-DCFC",{"v":2400,"d":"$2,400.00"},{"v":0.1,"d":"10%"},{"v":2160,"d":"$2,160.00"}]
[1,"Training/Support to end user (provide as hourly rate)",null,"OP-TRAINING",{"v":0,"d":"$0.00"},{"v":0.15,"d":"15%"},{"v":0,"d":"$0.00"}]
[1,"Turnkey Maintenance Plan that includes gauranteed up time and preventive maintenance",null,"6AGC084275 + 6AGX000022*",{"$f":"6883.13+1661.32","v":{"v":8544.45,"d":"$8,544.45"}},{"v":0.15,"d":"15%"},{"v":7262.782500000001,"d":"$7,262.78"}]
[1,"Fleet Charging Module (standard software/module provided for average fleet sizes)",{"$nulls":4},{"v":0,"d":"$0.00"}]
[]
["Discount % Catalog Items"]
["Additional items and accessories not offered above can be purchased from this contract at the following % off the most current publicly published price list or catalog.  Offeror must also submit a list of additional items that fit within these areas that may also be purchased via the contract.",{"$nulls":5},{"v":0.15,"d":"15.0%"}]
[]
[]
["Additional Manufacturer # 3"]
["Equipment"]
["QTY.","DESCRIPTION","MANUFACTURER","MODEL/PART #","UNIT PRICE","DISCOUNT % OFF","FINAL ITEM COST"]
[1,"All In One Single Unit Station (Power Cabinet and Dispenser)","ABB","Terra Wallbox / 6AGC081364 ",{"v":14702.62,"d":"$14,702.62"},{"v":0.2,"d":"20%"},{"$f":"E67-(E67*F67)","v":{"v":11762.096000000001,"d":"$11,762.10"}}]
[]
[]
["Accessories & Additional Items"]
["QTY.","DESCRIPTION","MANUFACTURER","MODEL/PART #","UNIT PRICE","DISCOUNT % OFF","FINAL ITEM COST"]
[1,"Cord Management Kit (most commonly sold cord management kit of suppliers which is sold to end users)","ABB","6AGC076604",{"v":720,"d":"$720.00"},{"v":0.2,"d":"20%"},{"$f":"E72-(E72*F72)","v":{"v":576,"d":"$576.00"}}]
[1,"Replacement Cord (most commonly sold replacement cord of suppliers which is sold to end users)",{"$nulls":4},{"v":0,"d":"$0.00"}]
[1,"480 Volt Sub-Panel (most commonly sold by supplier)",{"$nulls":4},{"v":0,"d":"$0.00"}]
[1,"Cellular Repeater (most common repeater used with station)",{"$nulls":4},{"v":0,"d":"$0.00"}]
[1,"Wheel Stops: (Includes material and installation for 1 wheel stop)",{"$nulls":4},{"v":0,"d":"$0.00"}]
[1,"Bollards: (Includes material and installation for 1 bollard)",{"$nulls":4},{"v":0,"d":"$0.00"}]
[1,"Replacement RFID card","OpConnect","OPCONNECT-RFID",{"v":5,"d":"$5.00"},{"v":0.15,"d":"15%"},{"v":4.25,"d":"$4.25"}]
["Services"]
["QTY.","DESCRIPTION","MANUFACTURER","MODEL/PART #","UNIT PRICE","DISCOUNT % OFF","FINAL ITEM COST"]
[1,"Networking (bundled with software) - Annual network data fees (including start up and initiation costs)",null,"OP-NOC3-L3-1",{"v":500,"d":"$500.00"},{"v":0.2,"d":"20%"},{"$f":"E81-(E81*F81)","v":{"v":400,"d":"$400.00"}}]
[1,"Basic Asset Management Services/Plan",{"$nulls":4},{"v":0,"d":"$0.00"}]
[1,"Existing EV Station Upgrade, Swap-out from Single Port to Dual Port",{"$nulls":4},{"v":0,"d":"$0.00"}]
[1,"Commissioning (average cost to certify and commission for use 1 EV Charging Station)",null,"OP-PROVISION-DCFC",{"v":2400,"d":"$2,400.00"},{"v":0.1,"d":"10%"},{"v":2160,"d":"$2,160.00"}]
[1,"Training/Support to end user (provide as hourly rate)",null,"OP-TRAINING",{"v":0,"d":"$0.00"},{"v":0.15,"d":"15%"},{"v":0,"d":"$0.00"}]
[1,"Turnkey Maintenance Plan that includes gauranteed up time and preventive maintenance",null,"6AGC100306 + 6AGX000020*",{"$f":"3380.71+1340.55","v":{"v":4721.26,"d":"$4,721.26"}},{"v":0.15,"d":"15%"},{"v":4013.0710000000004,"d":"$4,013.07"}]
[1,"Fleet Charging Module (standard software/module provided for average fleet sizes)",{"$nulls":4},{"v":0,"d":"$0.00"}]
[]
["Discount % Catalog Items"]
["Additional items and accessories not offered above can be purchased from this contract at the following % off the most current publicly published price list or catalog.  Offeror must also submit a list of additional items that fit within these areas that may also be purchased via the contract.",{"$nulls":5},{"v":0.15,"d":"15.0%"}]
[]
[]
["Additional Manufacturer # 4"]
["Equipment"]
["QTY.","DESCRIPTION","MANUFACTURER","MODEL/PART #","UNIT PRICE","DISCOUNT % OFF","FINAL ITEM COST"]
[1,"All In One Single Unit Station (Power Cabinet and Dispenser)","ABB","Terra Wallbox (CCS-1/CHAdeMO) / 6AGC107315",{"v":18008.65,"d":"$18,008.65"},{"v":0.2,"d":"20%"},{"$f":"E96-(E96*F96)","v":{"v":14406.920000000002,"d":"$14,406.92"}}]
[1,"Station/Dispenser",{"$nulls":4},{"$f":"E97-(E97*F97)","v":{"v":0,"d":"$0.00"}}]
[1,"Power Cabinet",null,"360kW PCS RES-DCV360-480 One Dispenser RES-D3-CS20HP (Bundle)",{"v":122411,"d":"$122,411.00"},{"v":0.1,"d":"10%"},{"$f":"E98-(E98*F98)","v":{"v":110169.9,"d":"$110,169.90"}}]
["Accessories & Additional Items"]
["QTY.","DESCRIPTION","MANUFACTURER","MODEL/PART #","UNIT PRICE","DISCOUNT % OFF","FINAL ITEM COST"]
[1,"Cord Management Kit (most commonly sold cord management kit of suppliers which is sold to end users)","ABB","6AGC076604",{"v":720,"d":"$720.00"},{"v":0.2,"d":"20%"},{"$f":"E101-(E101*F101)","v":{"v":576,"d":"$576.00"}}]
[1,"Replacement Cord (most commonly sold replacement cord of suppliers which is sold to end users)",{"$nulls":4},{"v":0,"d":"$0.00"}]
[1,"480 Volt Sub-Panel (most commonly sold by supplier)",{"$nulls":4},{"v":0,"d":"$0.00"}]
[1,"Cellular Repeater (most common repeater used with station)",{"$nulls":4},{"v":0,"d":"$0.00"}]
[1,"Wheel Stops: (Includes material and installation for 1 wheel stop)",{"$nulls":4},{"v":0,"d":"$0.00"}]
[1,"Bollards: (Includes material and installation for 1 bollard)",{"$nulls":4},{"v":0,"d":"$0.00"}]
[1,"Replacement RFID card","OpConnect","OPCONNECT-RFID",{"v":5,"d":"$5.00"},{"v":0.15,"d":"15%"},{"v":4.25,"d":"$4.25"}]
["Services"]
["QTY.","DESCRIPTION","MANUFACTURER","MODEL/PART #","UNIT PRICE","DISCOUNT % OFF","FINAL ITEM COST"]
[1,"Networking (bundled with software) - Annual network data fees (including start up and initiation costs)",null,"OP-NOC3-L3-1",{"v":500,"d":"$500.00"},{"v":0.2,"d":"20%"},{"$f":"E110-(E110*F110)","v":{"v":400,"d":"$400.00"}}]
[1,"Basic Asset Management Services/Plan",{"$nulls":4},{"v":0,"d":"$0.00"}]
[1,"Existing EV Station Upgrade, Swap-out from Single Port to Dual Port",{"$nulls":4},{"v":0,"d":"$0.00"}]
[1,"Commissioning (average cost to certify and commission for use 1 EV Charging Station)",null,"OP-PROVISION-DCFC",{"v":2400,"d":"$2,400.00"},{"v":0.1,"d":"10%"},{"v":2160,"d":"$2,160.00"}]
[1,"Training/Support to end user (provide as hourly rate)",null,"OP-TRAINING",{"v":0,"d":"$0.00"},{"v":0.15,"d":"15%"},{"v":0,"d":"$0.00"}]
[1,"Turnkey Maintenance Plan that includes gauranteed up time and preventive maintenance",null,"6AGC100306 + 6AGX000020*",{"$f":"3380.71+1340.55","v":{"v":4721.26,"d":"$4,721.26"}},{"v":0.15,"d":"15%"},{"v":4013.0710000000004,"d":"$4,013.07"}]
[1,"Fleet Charging Module (standard software/module provided for average fleet sizes)",{"$nulls":4},{"v":0,"d":"$0.00"}]
[]
["Discount % Catalog Items"]
["Additional items and accessories not offered above can be purchased from this contract at the following % off the most current publicly published price list or catalog.  Offeror must also submit a list of additional items that fit within these areas that may also be purchased via the contract.",{"$nulls":5},{"v":0.15,"d":"15.0%"}]

{"sheet":"+ Optional - Category 2 (ADD'L)","index":6,"n_rows":334,"n_cols":7,"rows_kept":334,"merged":[[0,0,0,6],[1,0,1,6],[3,0,3,1],[5,0,5,6],[6,0,6,6],[12,0,12,6],[21,0,21,6],[31,0,31,6],[32,0,32,5],[35,0,35,6],[36,0,36,6],[41,0,41,6],[51,0,51,6],[61,0,61,6],[62,0,62,5],[65,0,65,6],[66,0,66,6],[71,0,71,6],[80,0,80,6],[90,0,90,6],[91,0,91,5],[94,0,94,6],[95,0,95,6],[100,0,100,6],[110,0,110,6],[120,0,120,6],[121,0,121,5],[123,0,123,6],[124,0,124,6],[129,0,129,6],[139,0,139,6],[149,0,149,6],[150,0,150,6],[155,0,155,6],[164,0,164,6],[174,0,174,6],[175,0,175,6],[180,0,180,6],[187,0,187,6],[197,0,197,6],[198,0,198,6],[203,0,203,6],[210,0,210,6],[220,0,220,6],[221,0,221,6],[225,0,225,6],[232,0,232,6],[242,0,242,6],[243,0,243,6],[247,0,247,6],[254,0,254,6],[264,0,264,6],[265,0,265,6],[269,0,269,6],[276,0,276,6],[286,0,286,6],[287,0,287,6],[292,0,292,6],[298,0,298,6],[308,0,308,6],[309,0,309,6],[319,0,319,6],[325,0,325,6]]}
["OPTIONAL - Category 2 - Level 3 DC Fast Charger"]
["This tab is to be used if supplier will offer additional manufacturers if they are awarded a contract. This tab is NOT used for scoring and awarding but required to be completed if supplier is planning on offering additional manufacturers.  There are 4 tables to add up to 4 additional manufacturers.  If supplier offers more than 4, they may copy and paste the table at the bottom to add additional manufacturers.  As this is not used for scoring and awarding, these tables DO NOT need to have each line item filled out."]
[]
["How many additional manufacturers does supplier offer"]
[]
["Additional Manufacturer # 1"]
["Equipment"]
["QTY.","DESCRIPTION","MANUFACTURER","MODEL/PART #","UNIT PRICE","DISCOUNT % OFF","FINAL ITEM COST"]
[1,"All In One Single Unit Station (Power Cabinet and Dispenser)","BTC Power (120 kW)","L3A-120-480-202-016 ",{"v":56667,"d":"$56,667.00"},{"v":0.15,"d":"15%"},{"$f":"E9-(E9*F9)","v":{"v":48166.95,"d":"$48,166.95"}}]
[1,"All In One Single Unit Station (Power Cabinet and Dispenser)","BTC Power (180 kW)","L3A-180-480-502-016",{"v":67778,"d":"$67,778.00"},{"v":0.15,"d":"15%"},{"$f":"E10-(E10*F10)","v":{"v":57611.3,"d":"$57,611.30"}}]
[1,"Station/Dispenser","BTC Power (Dual Dispenser)"," HPCD7-450-D02-016",{"v":51111,"d":"$51,111.00"},{"v":0.15,"d":"15%"},{"$f":"E11-(E11*F11)","v":{"v":43444.35,"d":"$43,444.35"}}]
[1,"Power Cabinet","BTC Power (360 kW Tower- 2 Channel)","HPCT2-360-480-2",{"v":65556,"d":"$65,556.00"},{"v":0.15,"d":"15%"},{"$f":"E12-(E12*F12)","v":{"v":55722.6,"d":"$55,722.60"}}]
["Accessories & Additional Items"]
["QTY.","DESCRIPTION","MANUFACTURER","MODEL/PART #","UNIT PRICE","DISCOUNT % OFF","FINAL ITEM COST"]
[1,"Cord Management Kit (most commonly sold cord management kit of suppliers which is sold to end users)",{"$nulls":3},{"v":0.2,"d":"20%"},{"$f":"E15-(E15*F15)","v":{"v":0,"d":"$0.00"}}]
[1,"Replacement Cord (most commonly sold replacement cord of suppliers which is sold to end users)",{"$nulls":4},{"v":0,"d":"$0.00"}]
[1,"480 Volt Sub-Panel (most commonly sold by supplier)",{"$nulls":4},{"v":0,"d":"$0.00"}]
[1,"Cellular Repeater (most common repeater used with station)",{"$nulls":4},{"v":0,"d":"$0.00"}]
[1,"Wheel Stops: (Includes material and installation for 1 wheel stop)",{"$nulls":4},{"v":0,"d":"$0.00"}]
[1,"Bollards: (Includes material and installation for 1 bollard)",{"$nulls":4},{"v":0,"d":"$0.00"}]
[1,"Replacement RFID card",{"$nulls":4},{"v":0,"d":"$0.00"}]
["Services"]
["QTY.","DESCRIPTION","MANUFACTURER","MODEL/PART #","UNIT PRICE","DISCOUNT % OFF","FINAL ITEM COST"]
[1,"Networking (bundled with software) - Annual network data fees (including start up and initiation costs)",{"$nulls":4},{"$f":"E24-(E24*F24)","v":{"v":0,"d":"$0.00"}}]
[1,"Basic Asset Management Services/Plan",{"$nulls":4},{"v":0,"d":"$0.00"}]
[1,"Existing EV Station Upgrade, Swap-out from Single Port to Dual Port",{"$nulls":4},{"v":0,"d":"$0.00"}]
[1,"Commissioning (average cost to certify and commission for use 1 EV Charging Station)",{"$nulls":4},{"v":0,"d":"$0.00"}]
[1,"Training/Support to end user (provide as hourly rate)",{"$nulls":4},{"v":0,"d":"$0.00"}]
[1,"Turnkey Maintenance Plan that includes gauranteed up time and preventive maintenance",{"$nulls":4},{"v":0,"d":"$0.00"}]
[1,"Fleet Charging Module (standard software/module provided for average fleet sizes)",{"$nulls":4},{"v":0,"d":"$0.00"}]
[]
["Discount % Catalog Items"]
["Additional items and accessories not offered above can be purchased from this contract at the following % off the most current publicly published price list or catalog.  Offeror must also submit a list of additional items that fit within these areas that may also be purchased via the contract.",{"$nulls":5},{"v":0.15,"d":"15.0%"}]
[]
[]
["Additional Manufacturer # 2"]
["Equipment"]
["QTY.","DESCRIPTION","MANUFACTURER","MODEL/PART #","UNIT PRICE","DISCOUNT % OFF","FINAL ITEM COST"]
[1,"All In One Single Unit Station (Power Cabinet and Dispenser)",{"$nulls":3},{"v":0.3,"d":"30%"},{"$f":"E39-(E39*F39)","v":{"v":0,"d":"$0.00"}}]
[1,"Station/Dispenser",{"$nulls":4},{"$f":"E40-(E40*F40)","v":{"v":0,"d":"$0.00"}}]
[1,"Power Cabinet","BTC Power (360 kW Tower - 4 channel)","HPCT3-360-480-4",{"v":73333,"d":"$73,333.00"},{"v":0.1,"d":"10%"},{"$f":"E41-(E41*F41)","v":{"v":65999.7,"d":"$65,999.70"}}]
["Accessories & Additional Items"]
["QTY.","DESCRIPTION","MANUFACTURER","MODEL/PART #","UNIT PRICE","DISCOUNT % OFF","FINAL ITEM COST"]
[1,"Cord Management Kit (most commonly sold cord management kit of suppliers which is sold to end users)",{"$nulls":3},{"v":0.2,"d":"20%"},{"$f":"E44-(E44*F44)","v":{"v":0,"d":"$0.00"}}]
[1,"Replacement Cord (most commonly sold replacement cord of suppliers which is sold to end users)",{"$nulls":4},{"v":0,"d":"$0.00"}]
[1,"480 Volt Sub-Panel (most commonly sold by supplier)",{"$nulls":4},{"v":0,"d":"$0.00"}]
[1,"Credit Card Reader",{"$nulls":3},{"v":0.15,"d":"15%"},{"v":0,"d":"$0.00"}]
[1,"Cellular Repeater (most common repeater used with station)",{"$nulls":4},{"v":0,"d":"$0.00"}]
[1,"Wheel Stops: (Includes material and installation for 1 wheel stop)",{"$nulls":4},{"v":0,"d":"$0.00"}]
[1,"Bollards: (Includes material and installation for 1 bollard)",{"$nulls":4},{"v":0,"d":"$0.00"}]
[1,"Replacement RFID card",{"$nulls":4},{"v":0,"d":"$0.00"}]
["Services"]
["QTY.","DESCRIPTION","MANUFACTURER","MODEL/PART #","UNIT PRICE","DISCOUNT % OFF","FINAL ITEM COST"]
[1,"Networking (bundled with software) - Annual network data fees (including start up and initiation costs)",{"$nulls":4},{"$f":"E54-(E54*F54)","v":{"v":0,"d":"$0.00"}}]
[1,"Basic Asset Management Services/Plan",{"$nulls":4},{"v":0,"d":"$0.00"}]
[1,"Existing EV Station Upgrade, Swap-out from Single Port to Dual Port",{"$nulls":4},{"v":0,"d":"$0.00"}]
[1,"Commissioning (average cost to certify and commission for use 1 EV Charging Station)",{"$nulls":4},{"v":0,"d":"$0.00"}]
[1,"Training/Support to end user (provide as hourly rate)",{"$nulls":4},{"v":0,"d":"$0.00"}]
[1,"Turnkey Maintenance Plan that includes gauranteed up time and preventive maintenance",{"$nulls":4},{"v":0,"d":"$0.00"}]
[1,"Fleet Charging Module (standard software/module provided for average fleet sizes)",{"$nulls":4},{"v":0,"d":"$0.00"}]
[]
["Discount % Catalog Items"]
["Additional items and accessories not offered above can be purchased from this contract at the following % off the most current publicly published price list or catalog.  Offeror must also submit a list of additional items that fit within these areas that may also be purchased via the contract.",{"$nulls":5},{"v":0.15,"d":"15.0%"}]
[]
[]
["Additional Manufacturer # 3"]
["Equipment"]
["QTY.","DESCRIPTION","MANUFACTURER","MODEL/PART #","UNIT PRICE","DISCOUNT % OFF","FINAL ITEM COST"]
[1,"All In One Single Unit Station (Power Cabinet and Dispenser)","Tritium RTM75","24085-0000000",{"v":37123,"d":"$37,123.00"},{"v":0.15,"d":"15%"},{"$f":"E69-(E69*F69)","v":{"v":31554.55,"d":"$31,554.55"}}]
[1,"Station/Dispenser","BTC Power (Dual Dispenser)"," HPCD7-450-D02-016",{"v":51111,"d":"$51,111.00"},null,{"$f":"E70-(E70*F70)","v":{"v":51111,"d":"$51,111.00"}}]
[1,"Power Cabinet","BTC Power (180 kW Tower)","HPCT3-180-480-2",{"v":53000,"d":"$53,000.00"},{"v":0.1,"d":"10%"},{"$f":"E71-(E71*F71)","v":{"v":47700,"d":"$47,700.00"}}]
["Accessories & Additional Items"]
["QTY.","DESCRIPTION","MANUFACTURER","MODEL/PART #","UNIT PRICE","DISCOUNT % OFF","FINAL ITEM COST"]
[1,"Cord Management Kit (most commonly sold cord management kit of suppliers which is sold to end users)",{"$nulls":3},{"v":0.2,"d":"20%"},{"$f":"E74-(E74*F74)","v":{"v":0,"d":"$0.00"}}]
[1,"Replacement Cord (most commonly sold replacement cord of suppliers which is sold to end users)",{"$nulls":4},{"v":0,"d":"$0.00"}]
[1,"480 Volt Sub-Panel (most commonly sold by supplier)",{"$nulls":4},{"v":0,"d":"$0.00"}]
[1,"Cellular Repeater (most common repeater used with station)",{"$nulls":4},{"v":0,"d":"$0.00"}]
[1,"Wheel Stops: (Includes material and installation for 1 wheel stop)",{"$nulls":4},{"v":0,"d":"$0.00"}]
[1,"Bollards: (Includes material and installation for 1 bollard)",{"$nulls":4},{"v":0,"d":"$0.00"}]
[1,"Replacement RFID card",{"$nulls":4},{"v":0,"d":"$0.00"}]
["Services"]
["QTY.","DESCRIPTION","MANUFACTURER","MODEL/PART #","UNIT PRICE","DISCOUNT % OFF","FINAL ITEM COST"]
[1,"Networking (bundled with software) - Annual network data fees (including start up and initiation costs)",{"$nulls":4},{"$f":"E83-(E83*F83)","v":{"v":0,"d":"$0.00"}}]
[1,"Basic Asset Management Services/Plan",{"$nulls":4},{"v":0,"d":"$0.00"}]
[1,"Existing EV Station Upgrade, Swap-out from Single Port to Dual Port",{"$nulls":4},{"v":0,"d":"$0.00"}]
[1,"Commissioning (average cost to certify and commission for use 1 EV Charging Station)",{"$nulls":4},{"v":0,"d":"$0.00"}]
[1,"Training/Support to end user (provide as hourly rate)",{"$nulls":4},{"v":0,"d":"$0.00"}]
[1,"Turnkey Maintenance Plan that includes gauranteed up time and preventive maintenance",{"$nulls":4},{"v":0,"d":"$0.00"}]
[1,"Fleet Charging Module (standard software/module provided for average fleet sizes)",{"$nulls":4},{"v":0,"d":"$0.00"}]
[]
["Discount % Catalog Items"]
["Additional items and accessories not offered above can be purchased from this contract at the following % off the most current publicly published price list or catalog.  Offeror must also submit a list of additional items that fit within these areas that may also be purchased via the contract.",{"$nulls":5},{"v":0.15,"d":"15.0%"}]
[]
[]
["Additional Manufacturer # 4"]
["Equipment"]
["QTY.","DESCRIPTION","MANUFACTURER","MODEL/PART #","UNIT PRICE","DISCOUNT % OFF","FINAL ITEM COST"]
[1,"All In One Single Unit Station (Power Cabinet and Dispenser)","Tritium (RTM50)",19918,{"v":34915,"d":"$34,915.00"},{"v":0.15,"d":"15%"},{"$f":"E98-(E98*F98)","v":{"v":29677.75,"d":"$29,677.75"}}]
[1,"Station/Dispenser","Tritium (PKM 150)",19887,{"v":72605,"d":"$72,605.00"},{"v":0.15,"d":"15%"},{"$f":"E99-(E99*F99)","v":{"v":61714.25,"d":"$61,714.25"}}]
[1,"Power Cabinet","Tritium (PKM Rectifier)",20622,{"v":63480,"d":"$63,480.00"},{"v":0.15,"d":"15%"},{"$f":"E100-(E100*F100)","v":{"v":53958,"d":"$53,958.00"}}]
["Accessories & Additional Items"]
["QTY.","DESCRIPTION","MANUFACTURER","MODEL/PART #","UNIT PRICE","DISCOUNT % OFF","FINAL ITEM COST"]
[1,"Cord Management Kit (most commonly sold cord management kit of suppliers which is sold to end users)",{"$nulls":4},{"$f":"E103-(E103*F103)","v":{"v":0,"d":"$0.00"}}]
[1,"Replacement Cord (most commonly sold replacement cord of suppliers which is sold to end users)",{"$nulls":4},{"v":0,"d":"$0.00"}]
[1,"Credit Card Reader","Payter (P68) - Tritium",17156,{"v":1150,"d":"$1,150.00"},{"v":0.1,"d":"10%"},{"v":1035,"d":"$1,035.00"}]
[1,"480 Volt Sub-Panel (most commonly sold by supplier)",{"$nulls":4},{"v":0,"d":"$0.00"}]
[1,"Cellular Repeater (most common repeater used with station)",{"$nulls":4},{"v":0,"d":"$0.00"}]
[1,"Wheel Stops: (Includes material and installation for 1 wheel stop)",{"$nulls":4},{"v":0,"d":"$0.00"}]
[1,"Bollards: (Includes material and installation for 1 bollard)",{"$nulls":4},{"v":0,"d":"$0.00"}]
[1,"Replacement RFID card",{"$nulls":4},{"v":0,"d":"$0.00"}]
["Services"]
["QTY.","DESCRIPTION","MANUFACTURER","MODEL/PART #","UNIT PRICE","DISCOUNT % OFF","FINAL ITEM COST"]
[1,"Networking (bundled with software) - Annual network data fees (including start up and initiation costs)",{"$nulls":4},{"$f":"E113-(E113*F113)","v":{"v":0,"d":"$0.00"}}]
[1,"Basic Asset Management Services/Plan",{"$nulls":4},{"v":0,"d":"$0.00"}]
[1,"Existing EV Station Upgrade, Swap-out from Single Port to Dual Port",{"$nulls":4},{"v":0,"d":"$0.00"}]
[1,"Commissioning (average cost to certify and commission for use 1 EV Charging Station)",{"$nulls":4},{"v":0,"d":"$0.00"}]
[1,"Training/Support to end user (provide as hourly rate)",{"$nulls":4},{"v":0,"d":"$0.00"}]
[1,"Turnkey Maintenance Plan that includes gauranteed up time and preventive maintenance",{"$nulls":4},{"v":0,"d":"$0.00"}]
[1,"Fleet Charging Module (standard software/module provided for average fleet sizes)",{"$nulls":4},{"v":0,"d":"$0.00"}]
[]
["Discount % Catalog Items"]
["Additional items and accessories not offered above can be purchased from this contract at the following % off the most current publicly published price list or catalog.  Offeror must also submit a list of additional items that fit within these areas that may also be purchased via the contract.",{"$nulls":5},{"v":0.15,"d":"15.0%"}]
[]
["Additional Manufacturer # 5"]
["Equipment"]
["QTY.","DESCRIPTION","MANUFACTURER","MODEL/PART #","UNIT PRICE","DISCOUNT % OFF","FINAL ITEM COST"]
[1,"All In One Single Unit Station (Power Cabinet and Dispenser)","Kempower","C501P40UU5CSD2L  / C801P40UU5CSD2L",{"v":40173,"d":"$40,173.00"},{"v":0.1,"d":"10%"},{"$f":"E127-(E127*F127)","v":{"v":36155.7,"d":"$36,155.70"}}]
[1,"Station/Dispenser","Kempower","STU5CSL",{"v":8983,"d":"$8,983.00"},{"v":0.1,"d":"10%"},{"$f":"E128-(E128*F128)","v":{"v":8084.7,"d":"$8,084.70"}}]
[1,"Power Cabinet","Kempower","C501D4LV3 + PM550LV1 x1 / C801D4LV3 + PM850V1 x1",{"v":41232,"d":"$41,232.00"},{"v":0.1,"d":"10%"},{"$f":"E129-(E129*F129)","v":{"v":37108.8,"d":"$37,108.80"}}]
["Accessories & Additional Items"]
["QTY.","DESCRIPTION","MANUFACTURER","MODEL/PART #","UNIT PRICE","DISCOUNT % OFF","FINAL ITEM COST"]
[1,"Extra Cable Length 7m for satelitte","Kempower",null,{"v":350,"d":"$350.00"},{"v":0,"d":"0%"},{"$f":"E132-(E132*F132)","v":{"v":350,"d":"$350.00"}}]
[1,"Steel base 200 mm raise kit for C501/C801","Kempower",null,{"v":1026,"d":"$1,026.00"},{"v":0.1,"d":"10%"},{"v":923.4,"d":"$923.40"}]
[1,"Credit Card Reader","Payter68",null,{"v":1893,"d":"$1,893.00"},{"v":0.1,"d":"10%"},{"v":1703.7,"d":"$1,703.70"}]
[1,"D6 Option for C501","Kempower",null,{"v":6134,"d":"$6,134.00"},{"v":0.1,"d":"10%"},{"v":5520.6,"d":"$5,520.60"}]
[1,"D6 Option for C801","Kempower",null,{"v":6134,"d":"$6,134.00"},{"v":0.1,"d":"10%"},{"v":5520.6,"d":"$5,520.60"}]
[1,"D8 Option for C501","Kempower",null,{"v":6134,"d":"$6,134.00"},{"v":0.1,"d":"10%"},{"v":5520.6,"d":"$5,520.60"}]
[1,"D8 Option for C801","Kempower",null,{"v":6134,"d":"$6,134.00"},{"v":0.1,"d":"10%"},{"v":5520.6,"d":"$5,520.60"}]
[1,{"$nulls":5},{"v":0,"d":"$0.00"}]
["Services"]
["QTY.","DESCRIPTION","MANUFACTURER","MODEL/PART #","UNIT PRICE","DISCOUNT % OFF","FINAL ITEM COST"]
[1,"Networking (bundled with software) - Annual network data fees (including start up and initiation costs)",{"$nulls":4},{"$f":"E142-(E142*F142)","v":{"v":0,"d":"$0.00"}}]
[1,"Basic Asset Management Services/Plan",{"$nulls":4},{"v":0,"d":"$0.00"}]
[1,"Existing EV Station Upgrade, Swap-out from Single Port to Dual Port",{"$nulls":4},{"v":0,"d":"$0.00"}]
[1,"Commissioning (average cost to certify and commission for use 1 EV Charging Station)",{"$nulls":4},{"v":0,"d":"$0.00"}]
[1,"Training/Support to end user (provide as hourly rate)",{"$nulls":4},{"v":0,"d":"$0.00"}]
[1,"Turnkey Maintenance Plan that includes gauranteed up time and preventive maintenance",{"$nulls":4},{"v":0,"d":"$0.00"}]
[1,"Fleet Charging Module (standard software/module provided for average fleet sizes)",{"$nulls":4},{"v":0,"d":"$0.00"}]
[]
["Additional Manufacturer # 6"]
["Equipment"]
["QTY.","DESCRIPTION","MANUFACTURER","MODEL/PART #","UNIT PRICE","DISCOUNT % OFF","FINAL ITEM COST"]
[1,"All In One Single Unit Station (Power Cabinet and Dispenser)","Kempower","C501P80UU5CSD2L / C801P80UU5CSD2L",{"v":54312,"d":"$54,312.00"},{"v":0.1,"d":"10%"},{"$f":"E153-(E153*F153)","v":{"v":48880.8,"d":"$48,880.80"}}]
[1,"Station/Dispenser","Kempower","STN5DSL",{"v":8983,"d":"$8,983.00"},{"v":0.1,"d":"10%"},{"$f":"E154-(E154*F154)","v":{"v":8084.7,"d":"$8,084.70"}}]
[1,"Power Cabinet","Kempower","C501D4LV3 + PM550LV1 x2 / C801D4LV3 + PM850V1 x2",{"v":55474,"d":"$55,474.00"},{"v":0.1,"d":"10%"},{"$f":"E155-(E155*F155)","v":{"v":49926.6,"d":"$49,926.60"}}]
["Accessories & Additional Items"]
["QTY.","DESCRIPTION","MANUFACTURER","MODEL/PART #","UNIT PRICE","DISCOUNT % OFF","FINAL ITEM COST"]
[1,"Extra Cable Length 7m for Single Station","Kempower",null,{"v":335,"d":"$335.00"},{"v":0.1,"d":"10%"},{"$f":"E158-(E158*F158)","v":{"v":301.5,"d":"$301.50"}}]
[1,"Steel base 200 mm raise kit for C502/C802","Kempower",null,{"v":2052,"d":"$2,052.00"},{"v":0.1,"d":"10%"},{"v":1846.8,"d":"$1,846.80"}]
[1,"Credit Card Reader","Apollo",null,{"v":2201,"d":"$2,201.00"},{"v":0.1,"d":"10%"},{"v":1980.9,"d":"$1,980.90"}]
[1,"D6 Option for C502","Kempower",null,{"v":12268,"d":"$12,268.00"},{"v":0.1,"d":"10%"},{"v":11041.2,"d":"$11,041.20"}]
[1,"D6 Option for C802","Kempower",null,{"v":12268,"d":"$12,268.00"},{"v":0.1,"d":"10%"},{"v":11041.2,"d":"$11,041.20"}]
[1,"D8 Option for C502","Kempower",null,{"v":12268,"d":"$12,268.00"},{"v":0.1,"d":"10%"},{"v":11041.2,"d":"$11,041.20"}]
[1,"D8 Option for C802","Kempower",null,{"v":12268,"d":"$12,268.00"},{"v":0.1,"d":"10%"},{"v":11041.2,"d":"$11,041.20"}]
["Services"]
["QTY.","DESCRIPTION","MANUFACTURER","MODEL/PART #","UNIT PRICE","DISCOUNT % OFF","FINAL ITEM COST"]
[1,"Networking (bundled with software) - Annual network data fees (including start up and initiation costs)",{"$nulls":4},{"$f":"E167-(E167*F167)","v":{"v":0,"d":"$0.00"}}]
[1,"Basic Asset Management Services/Plan",{"$nulls":4},{"v":0,"d":"$0.00"}]
[1,"Existing EV Station Upgrade, Swap-out from Single Port to Dual Port",{"$nulls":4},{"v":0,"d":"$0.00"}]
[1,"Commissioning (average cost to certify and commission for use 1 EV Charging Station)",{"$nulls":4},{"v":0,"d":"$0.00"}]
[1,"Training/Support to end user (provide as hourly rate)",{"$nulls":4},{"v":0,"d":"$0.00"}]
[1,"Turnkey Maintenance Plan that includes gauranteed up time and preventive maintenance",{"$nulls":4},{"v":0,"d":"$0.00"}]
[1,"Fleet Charging Module (standard software/module provided for average fleet sizes)",{"$nulls":4},{"v":0,"d":"$0.00"}]
[]
["Additional Manufacturer # 7"]
["Equipment"]
["QTY.","DESCRIPTION","MANUFACTURER","MODEL/PART #","UNIT PRICE","DISCOUNT % OFF","FINAL ITEM COST"]
[1,"All In One Single Unit Station (Power Cabinet and Dispenser)","Kempower","C501P120UU5CSD2L / C801P120UU5CSD2L",{"v":67911,"d":"$67,911.00"},{"v":0.1,"d":"10%"},{"$f":"E178-(E178*F178)","v":{"v":61119.9,"d":"$61,119.90"}}]
[1,"Station/Dispenser","Kempower","STUU5CSL",{"v":13760,"d":"$13,760.00"},{"v":0.1,"d":"10%"},{"$f":"E179-(E179*F179)","v":{"v":12384,"d":"$12,384.00"}}]
[1,"Power Cabinet","Kempower","C501D4LV3 + PM550LV1 x3 / C801D4LV3 + PM850V1 x3",{"v":69715,"d":"$69,715.00"},{"v":0.1,"d":"10%"},{"$f":"E180-(E180*F180)","v":{"v":62743.5,"d":"$62,743.50"}}]
["Accessories & Additional Items"]
["QTY.","DESCRIPTION","MANUFACTURER","MODEL/PART #","UNIT PRICE","DISCOUNT % OFF","FINAL ITEM COST"]
[1,"Steel base 200 mm raise kit for C503/C803","Kempower",null,{"v":3078,"d":"$3,078.00"},{"v":0.1,"d":"10%"},{"$f":"E183-(E183*F183)","v":{"v":2770.2,"d":"$2,770.20"}}]
[1,"D6 Option for C503","Kempower",null,{"v":18403,"d":"$18,403.00"},{"v":0.1,"d":"10%"},{"v":16562.7,"d":"$16,562.70"}]
[1,"D6 Option for C803","Kempower",null,{"v":18403,"d":"$18,403.00"},{"v":0.1,"d":"10%"},{"v":16562.7,"d":"$16,562.70"}]
[1,"D8 Option for C503","Kempower",null,{"v":18403,"d":"$18,403.00"},{"v":0.1,"d":"10%"},{"v":16562.7,"d":"$16,562.70"}]
[1,"D8 Option for C803","Kempower",null,{"v":18403,"d":"$18,403.00"},{"v":0.1,"d":"10%"},{"v":16562.7,"d":"$16,562.70"}]
["Services"]
["QTY.","DESCRIPTION","MANUFACTURER","MODEL/PART #","UNIT PRICE","DISCOUNT % OFF","FINAL ITEM COST"]
[1,"Networking (bundled with software) - Annual network data fees (including start up and initiation costs)",{"$nulls":4},{"$f":"E190-(E190*F190)","v":{"v":0,"d":"$0.00"}}]
[1,"Basic Asset Management Services/Plan",{"$nulls":4},{"v":0,"d":"$0.00"}]
[1,"Existing EV Station Upgrade, Swap-out from Single Port to Dual Port",{"$nulls":4},{"v":0,"d":"$0.00"}]
[1,"Commissioning (average cost to certify and commission for use 1 EV Charging Station)",{"$nulls":4},{"v":0,"d":"$0.00"}]
[1,"Training/Support to end user (provide as hourly rate)",{"$nulls":4},{"v":0,"d":"$0.00"}]
[1,"Turnkey Maintenance Plan that includes gauranteed up time and preventive maintenance",{"$nulls":4},{"v":0,"d":"$0.00"}]
[1,"Fleet Charging Module (standard software/module provided for average fleet sizes)",{"$nulls":4},{"v":0,"d":"$0.00"}]
[]
["Additional Manufacturer # 8"]
["Equipment"]
["QTY.","DESCRIPTION","MANUFACTURER","MODEL/PART #","UNIT PRICE","DISCOUNT % OFF","FINAL ITEM COST"]
[1,"All In One Single Unit Station (Power Cabinet and Dispenser)","Kempower","C501P160UU5CSD2L / C801P160UU5CSD2L",{"v":81510,"d":"$81,510.00"},{"v":0.1,"d":"10%"},{"$f":"E201-(E201*F201)","v":{"v":73359,"d":"$73,359.00"}}]
[1,"Station/Dispenser","Kempower","STUN5CDSL",{"v":13760,"d":"$13,760.00"},{"v":0.1,"d":"10%"},{"$f":"E202-(E202*F202)","v":{"v":12384,"d":"$12,384.00"}}]
[1,"Power Cabinet","Kempower","C501D4LV3 + PM550LV1 x4 / C801D4LV3 + PM850V1 x4",{"v":83956,"d":"$83,956.00"},{"v":0.1,"d":"10%"},{"$f":"E203-(E203*F203)","v":{"v":75560.4,"d":"$75,560.40"}}]
["Accessories & Additional Items"]
["QTY.","DESCRIPTION","MANUFACTURER","MODEL/PART #","UNIT PRICE","DISCOUNT % OFF","FINAL ITEM COST"]
[1,"Upgrade CCS1 Cable option (E) (CCS1 300A)","Kempower",null,{"v":2785,"d":"$2,785.00"},{"v":0.1,"d":"10%"},{"$f":"E206-(E206*F206)","v":{"v":2506.5,"d":"$2,506.50"}}]
[1,"Upgrade CCS1 Cable option (H) (CCS1 400A)","Kempower",null,{"v":3398,"d":"$3,398.00"},{"v":0.1,"d":"10%"},{"v":3058.2,"d":"$3,058.20"}]
[1,"Upgrade NACS Cable option (L) (NACS 350A)","Kempower",null,{"v":2785,"d":"$2,785.00"},{"v":0.1,"d":"10%"},{"v":2506.5,"d":"$2,506.50"}]
[1,"Upgrade NACS Cable option (G) (NACS 380A)","Kempower",null,{"v":3398,"d":"$3,398.00"},{"v":0.1,"d":"10%"},{"$f":"E209-(E209*F209)","v":{"v":3058.2,"d":"$3,058.20"}}]
[1,"Equipment Stop","Kempower",null,{"v":521,"d":"$521.00"},{"v":0.1,"d":"10%"},{"$f":"E210-(E210*F210)","v":{"v":468.9,"d":"$468.90"}}]
["Services"]
["QTY.","DESCRIPTION","MANUFACTURER","MODEL/PART #","UNIT PRICE","DISCOUNT % OFF","FINAL ITEM COST"]
[1,"Networking (bundled with software) - Annual network data fees (including start up and initiation costs)",{"$nulls":4},{"$f":"E213-(E213*F213)","v":{"v":0,"d":"$0.00"}}]
[1,"Basic Asset Management Services/Plan",{"$nulls":4},{"v":0,"d":"$0.00"}]
[1,"Existing EV Station Upgrade, Swap-out from Single Port to Dual Port",{"$nulls":4},{"v":0,"d":"$0.00"}]
[1,"Commissioning (average cost to certify and commission for use 1 EV Charging Station)",{"$nulls":4},{"v":0,"d":"$0.00"}]
[1,"Training/Support to end user (provide as hourly rate)",{"$nulls":4},{"v":0,"d":"$0.00"}]
[1,"Turnkey Maintenance Plan that includes gauranteed up time and preventive maintenance",{"$nulls":4},{"v":0,"d":"$0.00"}]
[1,"Fleet Charging Module (standard software/module provided for average fleet sizes)",{"$nulls":4},{"v":0,"d":"$0.00"}]
[]
["Additional Manufacturer # 9"]
["Equipment"]
["QTY.","DESCRIPTION","MANUFACTURER","MODEL/PART #","UNIT PRICE","DISCOUNT % OFF","FINAL ITEM COST"]
[1,"All In One Single Unit Station (Power Cabinet and Dispenser)","Kempower","C502P200UU5CSD2L / C802P200UU5CSD2L",{"v":113100,"d":"$113,100.00"},{"v":0.1,"d":"10%"},{"$f":"E224-(E224*F224)","v":{"v":101790,"d":"$101,790.00"}}]
[1,"Power Cabinet","Kempower","C502D4LV3 + PM550LV1 x4 / C802D4LV3 + PM850V1 x4",{"v":110246,"d":"$110,246.00"},{"v":0.1,"d":"10%"},{"$f":"E225-(E225*F225)","v":{"v":99221.4,"d":"$99,221.40"}}]
["Accessories & Additional Items"]
["QTY.","DESCRIPTION","MANUFACTURER","MODEL/PART #","UNIT PRICE","DISCOUNT % OFF","FINAL ITEM COST"]
[1,"D4 option for C501/C801","Kempower",null,{"v":7113,"d":"$7,113.00"},{"v":0.1,"d":"10%"},{"$f":"E228-(E228*F228)","v":{"v":6401.7,"d":"$6,401.70"}}]
[1,"Upgrade Station cable option to 300A","Kempower",null,{"v":2659,"d":"$2,659.00"},{"v":0.1,"d":"10%"},{"v":2393.1,"d":"$2,393.10"}]
[1,"Upgrade cable option to NACS 250A & CCS1 300A","Kempower",null,{"v":2659,"d":"$2,659.00"},{"v":0.1,"d":"10%"},{"v":2393.1,"d":"$2,393.10"}]
[1,"Upgrade cable option to CHAdeMo & CCS1 200A","Kempower",null,{"v":41,"d":"$41.00"},{"v":0.1,"d":"10%"},{"v":36.9,"d":"$36.90"}]
[1,"Upgrade cable option to CHAdeMo & CCS1 300A","Kempower",null,{"v":2700,"d":"$2,700.00"},{"v":0.1,"d":"10%"},{"v":2430,"d":"$2,430.00"}]
["Services"]
["QTY.","DESCRIPTION","MANUFACTURER","MODEL/PART #","UNIT PRICE","DISCOUNT % OFF","FINAL ITEM COST"]
[1,"Networking (bundled with software) - Annual network data fees (including start up and initiation costs)",{"$nulls":4},{"$f":"E235-(E235*F235)","v":{"v":0,"d":"$0.00"}}]
[1,"Basic Asset Management Services/Plan",{"$nulls":4},{"v":0,"d":"$0.00"}]
[1,"Existing EV Station Upgrade, Swap-out from Single Port to Dual Port",{"$nulls":4},{"v":0,"d":"$0.00"}]
[1,"Commissioning (average cost to certify and commission for use 1 EV Charging Station)",{"$nulls":4},{"v":0,"d":"$0.00"}]
[1,"Training/Support to end user (provide as hourly rate)",{"$nulls":4},{"v":0,"d":"$0.00"}]
[1,"Turnkey Maintenance Plan that includes gauranteed up time and preventive maintenance",{"$nulls":4},{"v":0,"d":"$0.00"}]
[1,"Fleet Charging Module (standard software/module provided for average fleet sizes)",{"$nulls":4},{"v":0,"d":"$0.00"}]
[]
["Additional Manufacturer # 10"]
["Equipment"]
["QTY.","DESCRIPTION","MANUFACTURER","MODEL/PART #","UNIT PRICE","DISCOUNT % OFF","FINAL ITEM COST"]
[1,"All In One Single Unit Station (Power Cabinet and Dispenser)","Kempower","C502P240UU5CSD2L / C802P240UU5CSD2L",{"v":126699,"d":"$126,699.00"},{"v":0.1,"d":"10%"},{"$f":"E246-(E246*F246)","v":{"v":114029.1,"d":"$114,029.10"}}]
[1,"Power Cabinet","Kempower","C502D4LV3 + PM550LV1 x5 / C802D4LV3 + PM850V1 x5",{"v":124487,"d":"$124,487.00"},{"v":0.1,"d":"10%"},{"$f":"E247-(E247*F247)","v":{"v":112038.3,"d":"$112,038.30"}}]
["Accessories & Additional Items"]
["QTY.","DESCRIPTION","MANUFACTURER","MODEL/PART #","UNIT PRICE","DISCOUNT % OFF","FINAL ITEM COST"]
[1,"Replacement Cord (most commonly sold replacement cord of suppliers which is sold to end users)",{"$nulls":4},{"$f":"E250-(E250*F250)","v":{"v":0,"d":"$0.00"}}]
[1,"Cellular Repeater (most common repeater used with station)",{"$nulls":4},{"v":0,"d":"$0.00"}]
[1,"Wheel Stops: (Includes material and installation for 1 wheel stop)",{"$nulls":4},{"v":0,"d":"$0.00"}]
[1,"Bollards: (Includes material and installation for 1 bollard)",{"$nulls":4},{"v":0,"d":"$0.00"}]
[1,"Replacement RFID card",{"$nulls":4},{"v":0,"d":"$0.00"}]
["Services"]
["QTY.","DESCRIPTION","MANUFACTURER","MODEL/PART #","UNIT PRICE","DISCOUNT % OFF","FINAL ITEM COST"]
[1,"Networking (bundled with software) - Annual network data fees (including start up and initiation costs)",{"$nulls":4},{"$f":"E257-(E257*F257)","v":{"v":0,"d":"$0.00"}}]
[1,"Basic Asset Management Services/Plan",{"$nulls":4},{"v":0,"d":"$0.00"}]
[1,"Existing EV Station Upgrade, Swap-out from Single Port to Dual Port",{"$nulls":4},{"v":0,"d":"$0.00"}]
[1,"Commissioning (average cost to certify and commission for use 1 EV Charging Station)",{"$nulls":4},{"v":0,"d":"$0.00"}]
[1,"Training/Support to end user (provide as hourly rate)",{"$nulls":4},{"v":0,"d":"$0.00"}]
[1,"Turnkey Maintenance Plan that includes gauranteed up time and preventive maintenance",{"$nulls":4},{"v":0,"d":"$0.00"}]
[1,"Fleet Charging Module (standard software/module provided for average fleet sizes)",{"$nulls":4},{"v":0,"d":"$0.00"}]
[]
["Additional Manufacturer # 11"]
["Equipment"]
["QTY.","DESCRIPTION","MANUFACTURER","MODEL/PART #","UNIT PRICE","DISCOUNT % OFF","FINAL ITEM COST"]
[1,"All In One Single Unit Station (Power Cabinet and Dispenser)","Kempower","C502P280UU5CSD2L / C802P280UU5CSD2L",{"v":140298,"d":"$140,298.00"},{"v":0.1,"d":"10%"},{"$f":"E268-(E268*F268)","v":{"v":126268.2,"d":"$126,268.20"}}]
[1,"Power Cabinet","Kempower","C502D4LV3 + PM550LV1 x6 / C802D4LV3 + PM850V1 x6",{"v":138729,"d":"$138,729.00"},{"v":0.1,"d":"10%"},{"$f":"E269-(E269*F269)","v":{"v":124856.1,"d":"$124,856.10"}}]
["Accessories & Additional Items"]
["QTY.","DESCRIPTION","MANUFACTURER","MODEL/PART #","UNIT PRICE","DISCOUNT % OFF","FINAL ITEM COST"]
[1,"Replacement Cord (most commonly sold replacement cord of suppliers which is sold to end users)",{"$nulls":4},{"$f":"E272-(E272*F272)","v":{"v":0,"d":"$0.00"}}]
[1,"Cellular Repeater (most common repeater used with station)",{"$nulls":4},{"v":0,"d":"$0.00"}]
[1,"Wheel Stops: (Includes material and installation for 1 wheel stop)",{"$nulls":4},{"v":0,"d":"$0.00"}]
[1,"Bollards: (Includes material and installation for 1 bollard)",{"$nulls":4},{"v":0,"d":"$0.00"}]
[1,"Replacement RFID card",{"$nulls":4},{"v":0,"d":"$0.00"}]
["Services"]
["QTY.","DESCRIPTION","MANUFACTURER","MODEL/PART #","UNIT PRICE","DISCOUNT % OFF","FINAL ITEM COST"]
[1,"Networking (bundled with software) - Annual network data fees (including start up and initiation costs)",{"$nulls":4},{"$f":"E279-(E279*F279)","v":{"v":0,"d":"$0.00"}}]
[1,"Basic Asset Management Services/Plan",{"$nulls":4},{"v":0,"d":"$0.00"}]
[1,"Existing EV Station Upgrade, Swap-out from Single Port to Dual Port",{"$nulls":4},{"v":0,"d":"$0.00"}]
[1,"Commissioning (average cost to certify and commission for use 1 EV Charging Station)",{"$nulls":4},{"v":0,"d":"$0.00"}]
[1,"Training/Support to end user (provide as hourly rate)",{"$nulls":4},{"v":0,"d":"$0.00"}]
[1,"Turnkey Maintenance Plan that includes gauranteed up time and preventive maintenance",{"$nulls":4},{"v":0,"d":"$0.00"}]
[1,"Fleet Charging Module (standard software/module provided for average fleet sizes)",{"$nulls":4},{"v":0,"d":"$0.00"}]
[]
["Additional Manufacturer # 12"]
["Equipment"]
["QTY.","DESCRIPTION","MANUFACTURER","MODEL/PART #","UNIT PRICE","DISCOUNT % OFF","FINAL ITEM COST"]
[1,"All In One Single Unit Station (Power Cabinet and Dispenser)","Kempower","C502P320UU5CSD2L / C802P320UU5CSD2L",{"v":153897,"d":"$153,897.00"},{"v":0.1,"d":"10%"},{"$f":"E290-(E290*F290)","v":{"v":138507.3,"d":"$138,507.30"}}]
[1,"Station/Dispenser",{"$nulls":3},{"v":0.1,"d":"10%"},{"$f":"E291-(E291*F291)","v":{"v":0,"d":"$0.00"}}]
[1,"Power Cabinet","Kempower","C502D4LV3 + PM550LV1 x7 / C802D4LV3 + PM850V1 x7",{"v":152970,"d":"$152,970.00"},{"v":0.1,"d":"10%"},{"$f":"E292-(E292*F292)","v":{"v":137673,"d":"$137,673.00"}}]
["Accessories & Additional Items"]
["QTY.","DESCRIPTION","MANUFACTURER","MODEL/PART #","UNIT PRICE","DISCOUNT % OFF","FINAL ITEM COST"]
[1,"Cellular Repeater (most common repeater used with station)",{"$nulls":4},{"$f":"E295-(E295*F295)","v":{"v":0,"d":"$0.00"}}]
[1,"Wheel Stops: (Includes material and installation for 1 wheel stop)",{"$nulls":4},{"v":0,"d":"$0.00"}]
[1,"Bollards: (Includes material and installation for 1 bollard)",{"$nulls":4},{"v":0,"d":"$0.00"}]
[1,"Replacement RFID card",{"$nulls":4},{"v":0,"d":"$0.00"}]
["Services"]
["QTY.","DESCRIPTION","MANUFACTURER","MODEL/PART #","UNIT PRICE","DISCOUNT % OFF","FINAL ITEM COST"]
[1,"Networking (bundled with software) - Annual network data fees (including start up and initiation costs)",{"$nulls":4},{"$f":"E301-(E301*F301)","v":{"v":0,"d":"$0.00"}}]
[1,"Basic Asset Management Services/Plan",{"$nulls":4},{"v":0,"d":"$0.00"}]
[1,"Existing EV Station Upgrade, Swap-out from Single Port to Dual Port",{"$nulls":4},{"v":0,"d":"$0.00"}]
[1,"Commissioning (average cost to certify and commission for use 1 EV Charging Station)",{"$nulls":4},{"v":0,"d":"$0.00"}]
[1,"Training/Support to end user (provide as hourly rate)",{"$nulls":4},{"v":0,"d":"$0.00"}]
[1,"Turnkey Maintenance Plan that includes gauranteed up time and preventive maintenance",{"$nulls":4},{"v":0,"d":"$0.00"}]
[1,"Fleet Charging Module (standard software/module provided for average fleet sizes)",{"$nulls":4},{"v":0,"d":"$0.00"}]
[]
["Additional Manufacturer # 12"]
["Equipment"]
["QTY.","DESCRIPTION","MANUFACTURER","MODEL/PART #","UNIT PRICE","DISCOUNT % OFF","FINAL ITEM COST"]
[1,"Power Cabinet","Kempower","C503D4LV3 + PM550LV1 x6 / C803D4LV3 + PM850V1 x6",{"v":165109,"d":"$165,109.00"},{"v":0.1,"d":"10%"},{"$f":"E312-(E312*F312)","v":{"v":148598.1,"d":"$148,598.10"}}]
[1,"Power Cabinet","Kempower","C503D4LV3 + PM550LV1 x7 / C803D4LV3 + PM850V1 x7",{"v":179260,"d":"$179,260.00"},{"v":0.1,"d":"10%"},{"$f":"E313-(E313*F313)","v":{"v":161334,"d":"$161,334.00"}}]
[1,"Power Cabinet","Kempower","C503D4LV3 + PM550LV1 x8 / C803D4LV3 + PM850V1 x8",{"v":193501,"d":"$193,501.00"},{"v":0.1,"d":"10%"},{"$f":"E314-(E314*F314)","v":{"v":174150.9,"d":"$174,150.90"}}]
[1,"Power Cabinet","Kempower","C503D4LV3 + PM550LV1 x9 / C803D4LV3 + PM850V1 x9",{"v":207742,"d":"$207,742.00"},{"v":0.1,"d":"10%"},{"v":186967.8,"d":"$186,967.80"}]
[1,"Power Cabinet","Kempower","C503D4LV3 + PM550LV1 x10 / C803D4LV3 + PM850V1 x10",{"v":221984,"d":"$221,984.00"},{"v":0.1,"d":"10%"},{"v":199785.6,"d":"$199,785.60"}]
[1,"Power Cabinet","Kempower","C503D4LV3 + PM550LV1 x11 / C803D4LV3 + PM850V1 x11",{"v":236225,"d":"$236,225.00"},{"v":0.1,"d":"10%"},{"v":212602.5,"d":"$212,602.50"}]
[1,"Power Cabinet","Kempower","C503D4LV3 + PM550LV1 x12 / C803D4LV3 + PM850V1 x12",{"v":250466,"d":"$250,466.00"},{"v":0.1,"d":"10%"},{"v":225419.4,"d":"$225,419.40"}]
[1,"Power Cabinet","Kempower","C502D4LV3 + PM550LV1 x8 / C802D4LV3 + PM850V1 x8",{"v":167211,"d":"$167,211.00"},{"v":0.1,"d":"10%"},{"$f":"E319-(E319*F319)","v":{"v":150489.9,"d":"$150,489.90"}}]
["Accessories & Additional Items"]
["QTY.","DESCRIPTION","MANUFACTURER","MODEL/PART #","UNIT PRICE","DISCOUNT % OFF","FINAL ITEM COST"]
[1,"Cellular Repeater (most common repeater used with station)",{"$nulls":4},{"$f":"E322-(E322*F322)","v":{"v":0,"d":"$0.00"}}]
[1,"Wheel Stops: (Includes material and installation for 1 wheel stop)",{"$nulls":4},{"v":0,"d":"$0.00"}]
[1,"Bollards: (Includes material and installation for 1 bollard)",{"$nulls":4},{"v":0,"d":"$0.00"}]
[1,"Replacement RFID card",{"$nulls":4},{"v":0,"d":"$0.00"}]
["Services"]
["QTY.","DESCRIPTION","MANUFACTURER","MODEL/PART #","UNIT PRICE","DISCOUNT % OFF","FINAL ITEM COST"]
[1,"Networking (bundled with software) - Annual network data fees (including start up and initiation costs)",{"$nulls":4},{"$f":"E328-(E328*F328)","v":{"v":0,"d":"$0.00"}}]
[1,"Basic Asset Management Services/Plan",{"$nulls":4},{"v":0,"d":"$0.00"}]
[1,"Existing EV Station Upgrade, Swap-out from Single Port to Dual Port",{"$nulls":4},{"v":0,"d":"$0.00"}]
[1,"Commissioning (average cost to certify and commission for use 1 EV Charging Station)",{"$nulls":4},{"v":0,"d":"$0.00"}]
[1,"Training/Support to end user (provide as hourly rate)",{"$nulls":4},{"v":0,"d":"$0.00"}]
[1,"Turnkey Maintenance Plan that includes gauranteed up time and preventive maintenance",{"$nulls":4},{"v":0,"d":"$0.00"}]
[1,"Fleet Charging Module (standard software/module provided for average fleet sizes)",{"$nulls":4},{"v":0,"d":"$0.00"}]